{"text_format":"1","workbook":"xlsx","n_sheets":4,"sheets":["ESSER TI Equitable Services","dataDistrictList","Dropdowns","DataLookupValues"],"not_rendered":{"charts":0,"images":0,"macros":1,"external_links":1,"defined_names":27,"comments":0,"pivot_tables":0},"unopened":[],"bounds":{"document_bytes":16777216,"sheet_cells":100000,"rows_first":2000,"rows_last":500,"rows_between":2000,"halvings":0,"cell_chars":16384,"cell_head_chars":4096},"cells_cut":0,"cells_raw":0,"read":"whole","date_system":"1900"}

{"sheet":"ESSER TI Equitable Services","index":0,"n_rows":130,"n_cols":9,"rows_kept":130,"cut":false,"hidden":false,"merged":[[15,2,15,3],[1,2,3,7],[5,2,6,7],[8,1,10,1],[8,2,10,2],[12,1,14,1],[12,2,12,4],[13,2,13,3],[14,2,14,3],[16,2,16,3],[19,2,19,3],[20,2,20,4],[23,1,24,1],[23,2,23,8]]}
[]
[null,null,"ESSER Equitable Services Reservation Calculator:\nTitle I Methodology (ESSA §1117)\nSeptember, 2020"]
[]
[]
[null,null," "]
[null,null,"Directions:\n  1.    Choose your district in Step 1.\n  2.    Review information that is autopopulated in Step 2.  Note that the total of low income students attending Title I schools in the district is\n         based on your FY20 grant application and may have included the 1.6 multiplier.  If your district's Title I application in the FY21 ESSA workbook\n         has been approved, you may elect to enter the total low-income enrollment from your Title I schools for FY21 (ESSA workbook, Tab 8, \n         Column 6) by contacting your grant liaison to discuss and unlock the yellow cell.  If your district uses the FY20 low income count provided, leave \n         this cell blank. \n  3.    Districts that are participating in ESSER as a Schedule A consortium will need to complete this calculator for each member district (including\n         the lead district) with eligible private schools and total the equitable services reservation.  The total of all member districts' equitable \n         services reservations will be budgeted on the lead district's ESSER budget.\n  4.    In Step 3, list all nonprofit private schools that, in FY20, had enrolled student(s) residing in an FY20 Title I attendance area in your district (or a FY21 Title I \n         attendance area if you are using district Title I low-income numbers from your FY21 application after contacting your liaison in Step 2) and indicate the city \n         or town where the private school is located and whether each intends to participate in equitable services for ESSER.  This list will include private schools\n         inside and outside of your district, the same as the method for calculating Title I.  It may be helpful to refer to the Equitable Services Tab in your FY20 or\n         FY21 ESSA application workbook for the list of eligible private schools, depending on the year you are using, but remember that eligible private schools \n         may participate in ESSER equitable services even if they have not participated in Title I.  Note that private schools that were not in existence as of\n         March 13,2020 are not eligible for equitable services.\n  5.   In Step 3, Column A, list the number of students in each private school who lived in an FY20 Title I attendance area in your district, if you are using FY20\n         district low-income data, or in FY21, if you are using FY21 district low-income data in Step 2. In Column B, list those students from Column A who are \n         low-income.  The low-income count (methodology and obtaining data) will be part of consultation with private school officials and may result in in a \n         similar method to that used by the district (i.e., applying the 1.6 multiplier to the private school low-income number if used by the district). Note that \n         districts have the option of using one of five methods for determining low-income counts of eligible private school students, including proportionality    \n        (the same % of low-income as the district Title I school in which the private school students reside).  See USED's non-regulatory guidance, especially \n        questions B-11 through B-13 \n        for details.\n  6.   Review the equitable services reservations and total available to the district that are generated in Step 2 after completing Columns A and \n         B for Step 3.  Amend your budget as necessary to reflect the revised reservation for private schools and amount available for district expenses. Attach \n         this completed calculator when amending  your FY20-FY21 ESSER application.  Please retain the name of the file (ESSERT1.leacode.xlsm), replacing     \n        \"leacode\" with your district's four-digit code.\n\n  IMPORTANT NOTES FOR DISTRICTS RE: USING ESSER FUNDS\n  •    Districts are no longer required to limit spending of ESSER funds to their Title I schools when calculating equitable services based on \n        private schools' low-income students.  \n  •   In addition, there are no supplement not-supplant-restrictions governing ESSER funds, nor does spending of ESSER funds for expenditures\n       in Title I schools violate Title I's supplement-not-supplant requirements."]
[]
[]
[null,"Step 1\nChoose District","Choose your district:"]
[]
[]
[]
[null,"Step 2\nCheck District Data","Allocation Reserved for Equitable Services Based on Low-Income Private School Students Residing in District Title I Attendance Areas"]
[null,null,"A. Total FY20/21 ESSER Allocation",null,{"$f":"IF(DataLookupValues!B7=\"OrgName\", \"\", valESSERAlloc)","v":""}]
[null,null,"B. 1) Total Low-Income Enrollment in District Title I Schools (FY20)  or",null,{"$f":"IF(DataLookupValues!B7=\"OrgName\", \"\", DistLowInc)","v":""}]
[null,null,"     2) Total Low-Income Enrollment in District Title I Schools from an approved FY21 ESSA application"]
[null,null,"C. Total Low-Income students residing in Title I attendance areas in participating private schools",null,{"$f":"countPSLowInc","v":0}]
[null,null,"D. Equitable Service Reservation per low-income student (private/district) (A/(B+C))",null,{"$f":"IFERROR(IF(E17=0, 0, E14/(IF(E16>0, E16, E15)+E17)), \"\")","v":0}]
[null,null,"E. Total ESSER Reservation for Equitable Services, Option 1B (C*D)",null,{"$f":"IFERROR(E18*E17, \"\")","v":0}]
[null,null,"F.  Total available for district's ESSER allowable expenditures ",null,{"$f":"IFERROR(E14-valResOpt1B, 0)","v":0}]
[null,null,"     (Amount per school is generated below in Step 3)"]
[]
[]
[null,"Step 3\nList Private Schools ","Private Schools Serving Eligible Children Residing In or Out of District and Reservations"]
[null,null,"\nList private schools located within or outside district boundaries that have enrolled students who reside in a \nTitle I-served school attendance area \n(Use FY20 or FY21 data, see Directions, above, par. 4)\n   ","Where is this private school located? \n(provide city or town)","Will this Private School participate in ESSER Fund Services?\n(Select Yes or No for each listed school)","Number of children enrolled in private school who reside in a Title I-served attendance area, grades K-12 \n(see Directions, par. 5)","Number of children from Column A who are low-income \n(see Directions, par. 5)","Amount Per Student for ESSER Services ","Allocation Per School for ESSER Fund Services\n"]
[null,null,".",null,null,"A","B","C","D"]
[null,null,null,null,"Select One",null,null,{"$f":"IFERROR(IF(E27=\"Yes\", TitleIPP, 0), \"\")","v":0},{"$f":"IFERROR(IF(E27=\"Yes\", G27*H27, 0), \"\")","v":0}]
[null,null,null,null,"Select One",null,null,0,{"$f":"IFERROR(IF(E28=\"Yes\", G28*H28, 0), \"\")","v":0}]
[null,null,null,null,"Select One",null,null,0,0]
[null,null,null,null,"Select One",null,null,0,0]
[null,null,null,null,"Select One",null,null,0,0]
[null,null,null,null,"Select One",null,null,0,0]
[null,null,null,null,"Select One",null,null,0,0]
[null,null,null,null,"Select One",null,null,0,0]
[null,null,null,null,"Select One",null,null,0,0]
[null,null,null,null,"Select One",null,null,0,0]
[null,null,null,null,"Select One",null,null,0,0]
[null,null,null,null,"Select One",null,null,0,0]
[null,null,null,null,"Select One",null,null,0,0]
[null,null,null,null,"Select One",null,null,0,0]
[null,null,null,null,"Select One",null,null,0,0]
[null,null,null,null,"Select One",null,null,0,0]
[null,null,null,null,"Select One",null,null,0,0]
[null,null,null,null,"Select One",null,null,0,0]
[null,null,null,null,"Select One",null,null,0,0]
[null,null,null,null,"Select One",null,null,0,{"$f":"IFERROR(IF(E46=\"Yes\", G46*H46, 0), \"\")","v":0}]
[null,null,null,null,"Select One",null,null,0,0]
[null,null,null,null,"Select One",null,null,0,0]
[null,null,null,null,"Select One",null,null,0,0]
[null,null,null,null,"Select One",null,null,0,0]
[null,null,null,null,"Select One",null,null,0,0]
[null,null,null,null,"Select One",null,null,0,0]
[null,null,null,null,"Select One",null,null,0,0]
[null,null,null,null,"Select One",null,null,0,0]
[null,null,null,null,"Select One",null,null,0,0]
[null,null,null,null,"Select One",null,null,0,0]
[null,null,null,null,"Select One",null,null,0,0]
[null,null,null,null,"Select One",null,null,0,0]
[null,null,null,null,"Select One",null,null,{"$f":"IFERROR(IF(E59=\"Yes\", TitleIPP, 0), \"\")","v":0},0]
[null,null,null,null,"Select One",null,null,0,0]
[null,null,null,null,"Select One",null,null,0,0]
[null,null,null,null,"Select One",null,null,0,0]
[null,null,null,null,"Select One",null,null,0,0]
[null,null,null,null,"Select One",null,null,0,0]
[null,null,null,null,"Select One",null,null,0,0]
[null,null,null,null,"Select One",null,null,0,0]
[null,null,null,null,"Select One",null,null,0,0]
[null,null,null,null,"Select One",null,null,0,0]
[null,null,null,null,"Select One",null,null,0,0]
[null,null,null,null,"Select One",null,null,0,0]
[null,null,null,null,"Select One",null,null,0,0]
[null,null,null,null,"Select One",null,null,0,0]
[null,null,null,null,"Select One",null,null,0,0]
[null,null,null,null,"Select One",null,null,0,0]
[null,null,null,null,"Select One",null,null,0,0]
[null,null,null,null,"Select One",null,null,0,0]
[null,null,null,null,"Select One",null,null,0,0]
[null,null,null,null,"Select One",null,null,0,0]
[null,null,null,null,"Select One",null,null,0,0]
[null,null,null,null,"Select One",null,null,0,0]
[null,null,null,null,"Select One",null,null,0,0]
[null,null,null,null,"Select One",null,null,0,0]
[null,null,null,null,"Select One",null,null,0,0]
[null,null,null,null,"Select One",null,null,0,0]
[null,null,null,null,"Select One",null,null,0,0]
[null,null,null,null,"Select One",null,null,0,0]
[null,null,null,null,"Select One",null,null,0,0]
[null,null,null,null,"Select One",null,null,0,0]
[null,null,null,null,"Select One",null,null,0,0]
[null,null,null,null,"Select One",null,null,0,0]
[null,null,null,null,"Select One",null,null,{"$f":"IFERROR(IF(E91=\"Yes\", TitleIPP, 0), \"\")","v":0},0]
[null,null,null,null,"Select One",null,null,0,{"$f":"IFERROR(IF(E92=\"Yes\", G92*H92, 0), \"\")","v":0}]
[null,null,null,null,"Select One",null,null,0,0]
[null,null,null,null,"Select One",null,null,0,0]
[null,null,null,null,"Select One",null,null,0,0]
[null,null,null,null,"Select One",null,null,0,0]
[null,null,null,null,"Select One",null,null,0,0]
[null,null,null,null,"Select One",null,null,0,0]
[null,null,null,null,"Select One",null,null,0,0]
[null,null,null,null,"Select One",null,null,0,0]
[null,null,null,null,"Select One",null,null,0,0]
[null,null,null,null,"Select One",null,null,0,0]
[null,null,null,null,"Select One",null,null,0,0]
[null,null,null,null,"Select One",null,null,0,0]
[null,null,null,null,"Select One",null,null,0,0]
[null,null,null,null,"Select One",null,null,0,0]
[null,null,null,null,"Select One",null,null,0,0]
[null,null,null,null,"Select One",null,null,0,0]
[null,null,null,null,"Select One",null,null,0,0]
[null,null,null,null,"Select One",null,null,0,0]
[null,null,null,null,"Select One",null,null,0,0]
[null,null,null,null,"Select One",null,null,0,0]
[null,null,null,null,"Select One",null,null,0,0]
[null,null,null,null,"Select One",null,null,0,0]
[null,null,null,null,"Select One",null,null,0,0]
[null,null,null,null,"Select One",null,null,0,0]
[null,null,null,null,"Select One",null,null,0,0]
[null,null,null,null,"Select One",null,null,0,0]
[null,null,null,null,"Select One",null,null,0,0]
[null,null,null,null,"Select One",null,null,0,0]
[null,null,null,null,"Select One",null,null,0,0]
[null,null,null,null,"Select One",null,null,0,0]
[null,null,null,null,"Select One",null,null,{"$f":"IFERROR(IF(E123=\"Yes\", TitleIPP, 0), \"\")","v":0},0]
[null,null,null,null,"Select One",null,null,0,0]
[null,null,null,null,"Select One",null,null,0,0]
[null,null,null,null,"Select One",null,null,0,0]
[null,null,null,null,"Select One",null,null,0,0]
[null,null,null,null,"Select One",null,null,0,0]
[null,null,null,null,"Select One",null,null,0,0]
[null,null,null,null,null,{"$f":"SUMIF(E27:E129, \"Yes\", F27:F129)","v":0},{"$f":"SUMIF(E27:E129, \"Yes\", G27:G129)","v":0},null,{"$f":"IFERROR(SUM(I27:I129), 0)","v":0}]

{"sheet":"dataDistrictList","index":1,"n_rows":402,"n_cols":25,"rows_kept":402,"cut":false,"hidden":true,"merged":[]}
[1,"DISTRICT","OrgName","Org Type","Function","Contact Name","ADDR 1","ADDR 2","City","State","Zip","Liaison's Name","Liaison's Number","Liaison's Email",null,"March 2019 nElCOUNT_sum",null,"HOMELESS, K-12","SLE Gaps?","FY20 T1 Distr LowInc","March2020Enrolled","Schedule A?","Total T1FY20 ES Res","Total T1 Adjusted Alloc","ESSER Fund Allocation"]
[2,"04450000","Abby Kelley Foster Charter Public (District)","Charter District","Charter School Leader","Brian Haas","10 New Bond Street","","Worcester","MA","01606","Colleen Holforty","781-338-3522","colleen.e.holforty@mass.gov",null,140,null,13,"No","837",1425,null,0,457815,376583]
[3,"00010000","Abington","Public School District","Superintendent","Peter Schafer","1071 Washington St.","","Abington","MA","02351","Alex Lilley","781-338-6212","alex.j.lilley@mass.gov",null,100,null,6,"Yes","154",2073,null,0,198095,162946]
[4,"04120000","Academy Of the Pacific Rim Charter Public (District)","Charter District","Charter School Leader","Spencer Blasdale","1 Westinghouse Plaza Bldg B","","Hyde Park","MA","02136","Colleen Holforty","781-338-3522","colleen.e.holforty@mass.gov",null,68,null,3,"No","314",538,null,0,277352,228140]
[5,"06000000","Acton-Boxborough","Public School District","Superintendent","Peter Light","15 Charter Rd","","Acton","MA","01720","Sue Mazzarella","781-338-3587","susan.mazzarella@mass.gov",null,243,null,12,"Yes","127",5404,null,0,139279,114566]
[6,"00030000","Acushnet","Public School District","Superintendent","Paula Bailey","708 Middle Road","Suite 1","Acushnet","MA","02743","Colleen Holforty","781-338-3522","colleen.e.holforty@mass.gov",null,10,null,8,"Yes","192",970,null,1925.5714,94476,77713]
[7,"06030000","Adams-Cheshire","Public School District","Superintendent","Aaron Dean","191 Church St","","Cheshire","MA","01225","Alex Lilley","781-338-6212","alex.j.lilley@mass.gov",null,8,null,16,"Yes","619",1060,null,3607.8625999999999,322966,265661]
[8,"04300000","Advanced Math and Science Academy Charter (District)","Charter District","Charter School Leader","Ellen Linzey","201 Forest Street","","Marlborough","MA","01752","Sue Mazzarella","781-338-3587","susan.mazzarella@mass.gov",null,42,null,0,"Yes","101",965,null,0,20991,20000]
[9,"00050000","Agawam","Public School District","Superintendent","Steven Lemanski","1305 Springfield St","Suite 1","Feeding Hills","MA","01030","Nancy Labrie","781-338-3536","nancy.h.labrie@mass.gov",null,185,null,0,"Yes","685",3540,null,0,637360,524271]
[10,"04090000","Alma del Mar Charter School (District)","Charter District","Charter School Leader","Will Gardner","515 Belleville Ave","","New Bedford","MA","02746","Alex Chiu","781-338-3586","alexandria.w.chiu@mass.gov",null,106,null,0,"No","435",644,null,0,328799,270459]
[11,"00070000","Amesbury","Public School District","Superintendent","Jared Fulgoni","5 Highland Street","","Amesbury","MA","01913","Russ Fleming","781-338-6259","russellw.fleming@mass.gov",null,31,null,43,"Yes","308",1985,null,0,264458,217534]
[12,"00080000","Amherst","Public School District","Superintendent","Michael Morris","170 Chestnut Street","","Amherst","MA","01002","Ellie Rounds-Bloom","781-338-3128","eleanor.rounds@mass.gov",null,170,null,39,"Yes","700",1062,null,0,226198,186063]
[13,"06050000","Amherst-Pelham","Public School District","Superintendent","Michael Morris","170 Chestnut Street","","Amherst","MA","01002","Ellie Rounds-Bloom","781-338-3128","eleanor.rounds@mass.gov",null,84,null,0,"Yes","0",1330,null,0,280468,230703]
[14,"00090000","Andover","Public School District","Superintendent","Sheldon Berman","36 Bartlet Street","","Andover","MA","01810","Beth O'Connell","781-338-3132","elizabeth.a.o'connell@mass.gov",null,231,null,9,"Yes","466",5806,null,20232.821500000002,192632,158453]
[15,"35090000","Argosy Collegiate Charter School (District)","Charter District","Charter School Leader","Kristen Pavao","263 Hamlet Street","","Fall River","MA","02724","Julia Foodman","781-338-3577","julia.b.foodman@mass.gov",null,138,null,0,"No","408",500,null,0,269940,222043]
[16,"00100000","Arlington","Public School District","Superintendent","Kathleen Bodie","869 Massachusetts Avenue","","Arlington","MA","02476","Julia Foodman","781-338-3577","julia.b.foodman@mass.gov",null,275,null,10,"Yes","223",6029,null,0,187517,154245]
[17,"06100000","Ashburnham-Westminster","Public School District","Superintendent","Sandra Rehler","11 Oakmont Drive","","Ashburnham","MA","01430","Colleen Holforty","781-338-3522","colleen.e.holforty@mass.gov",null,32,null,6,"Yes","133",2323,null,0,153272,126076]
[18,"00140000","Ashland","Public School District","Superintendent","James Adams","87 West Union Street","","Ashland","MA","01721","Alex Lilley","781-338-6212","alex.j.lilley@mass.gov",null,162,null,14,"Yes","443",2802,null,0,195614,160905]
[19,"08010000","Assabet Valley Regional Vocational Technical","Public School District","Superintendent","Ernest Houle","215 Fitchburg Street","","Marlborough","MA","01752","Ellie Rounds-Bloom","781-338-3128","eleanor.rounds@mass.gov",null,33,null,0,"Yes","0",1123,null,0,156805,128982]
[20,"06150000","Athol-Royalston","Public School District","Superintendent","Darcy Fernandes","1062 Pleasant Street","","Athol","MA","01331","Nancy Labrie","781-338-3536","nancy.h.labrie@mass.gov",null,26,null,0,"Yes","1082",1468,null,0,534741,439859]
[21,"04910000","Atlantis Charter (District)","Charter District","Charter School Leader","Robert Beatty","991 Jefferson St","","Fall River","MA","02721","Alex Chiu","781-338-3586","alexandria.w.chiu@mass.gov",null,140,null,9,"Yes","866",1304,null,0,469689,386350]
[22,"00160000","Attleboro","Public School District","Superintendent","David Sawyer","100 Rathbun Willard Drive","","Attleboro","MA","02703","Alex Chiu","781-338-3586","alexandria.w.chiu@mass.gov",null,356,null,0,"Yes","1099",5840,null,0,991304,794513]
[23,"00170000","Auburn","Public School District","Superintendent","Maryellen Brunelle","5 West Street","","Auburn","MA","01501","Colleen Holforty","781-338-3522","colleen.e.holforty@mass.gov",null,91,null,7,"Yes","480",2538,null,0,189681,156025]
[24,"00180000","Avon","Public School District","Superintendent","Christine Godino","1 Patrick Clark Drive","","Avon","MA","02322","Nancy Labrie","781-338-3536","nancy.h.labrie@mass.gov",null,24,null,12,"Yes","171",704,null,0,69923,57516]
[25,"06160000","Ayer Shirley School District","Public School District","Superintendent","Mary Malone","115 Washington Street","","Ayer","MA","01432","Russ Fleming","781-338-6259","russellw.fleming@mass.gov",null,64,null,0,"Yes","641",1629,null,0,616339,506980]
[26,"00200000","Barnstable","Public School District","Superintendent","Meg Mayo-Brown","P O Box 955","","Hyannis","MA","02601","Alex Chiu","781-338-3586","alexandria.w.chiu@mass.gov",null,502,null,79,"Yes","645",4946,null,0,944586,776984]
[27,"35020000","Baystate Academy Charter Public School (District)","Charter District","Charter School Leader","Timothy Sneed","2001 Roosevelt Avenue","","Springfield","MA","01104","Beth O'Connell","781-338-3132","elizabeth.a.o'connell@mass.gov",null,61,null,0,"Yes","476",463,null,0,433525,356603]
[28,"00230000","Bedford","Public School District","Superintendent","Jonathan Sills","97 McMahon Road","","Bedford","MA","01730","Julia Foodman","781-338-3577","julia.b.foodman@mass.gov",null,155,null,1,"Yes","266",2666,null,0,56538,46507]
[29,"00240000","Belchertown","Public School District","Superintendent","Brian Cameron","PO Box 841","","Belchertown","MA","01007","Beth O'Connell","781-338-3132","elizabeth.a.o'connell@mass.gov",null,22,null,11,"Yes","191",2206,null,0,97319,80051]
[30,"00250000","Bellingham","Public School District","Superintendent","Peter Marano","4 Mechanic Street","","Bellingham","MA","02019","Sue Mazzarella","781-338-3587","susan.mazzarella@mass.gov",null,46,null,74,"Yes","230",2065,null,0,183357,150823]
[31,"00260000","Belmont","Public School District","Superintendent","John Phelan","644 Pleasant Street","","Belmont","MA","02478","Alex Chiu","781-338-3586","alexandria.w.chiu@mass.gov",null,357,null,0,"Yes","133",4740,null,0,154971,127474]
[32,"04200000","Benjamin Banneker Charter Public (District)","Charter District","Charter School Leader","Sherley Bretous-Carre","21 Notre Dame Avenue","","Cambridge","MA","02140","Ellie Rounds-Bloom","781-338-3128","eleanor.rounds@mass.gov",null,20,null,0,"Yes","232",312,null,0,144477,118842]
[33,"04470000","Benjamin Franklin Classical Charter Public (District)","Charter District","Charter School Leader","Heather Zolnowski","500 Financial Park","","Franklin","MA","02038","Russ Fleming","781-338-6259","russellw.fleming@mass.gov",null,26,null,0,"Yes","56",708,null,0,20690,20000]
[34,"00270000","Berkley","Public School District","Superintendent","Thomas Lynch","21 North Main Street","","Berkley","MA","02779","Russ Fleming","781-338-6259","russellw.fleming@mass.gov",null,6,null,0,"Yes","123",859,null,0,87929,72327]
[35,"04140000","Berkshire Arts and Technology Charter Public (District)","Charter District","Charter School Leader","James White","1 Commercial Pl","PO Box 267","Adams","MA","01220","Russ Fleming","781-338-6259","russellw.fleming@mass.gov",null,3,null,0,"Yes","250",356,null,0,106945,87970]
[36,"06180000","Berkshire Hills","Public School District","Superintendent","Peter Dillon","50 Main Street","PO Box 617","Stockbridge","MA","01262","Alex Chiu","781-338-3586","alexandria.w.chiu@mass.gov",null,40,null,0,"Yes","349",1183,null,6692.2438000000002,191638,141570]
[37,"06200000","Berlin-Boylston","Public School District","Superintendent","Jeffrey Zanghi","215 Main Street","","Boylston","MA","01505","Beth O'Connell","781-338-3132","elizabeth.a.o'connell@mass.gov",null,9,null,0,"Yes","184",1017,null,0,43646,24380]
[38,"00300000","Beverly","Public School District","Superintendent","Suzanne Charochak","70 Balch St.","","Beverly","MA","01915","Nancy Labrie","781-338-3536","nancy.h.labrie@mass.gov",null,164,null,0,"Yes","669",4660,null,9941.9588000000003,675860,555939]
[39,"00310000","Billerica","Public School District","Superintendent","Timothy Piwowar","365 Boston Rd","","Billerica","MA","01821","Russ Fleming","781-338-6259","russellw.fleming@mass.gov",null,69,null,16,"Yes","590",4668,null,2883.7575999999999,428834,352744]
[40,"08050000","Blackstone Valley Regional Vocational Technical","Public School District","Superintendent","Michael Fitzpatrick","65 Pleasant Street","","Upton","MA","01568","Alex Chiu","781-338-3586","alexandria.w.chiu@mass.gov",null,2,null,0,"No","187",1216,null,0,38859,31964]
[41,"06220000","Blackstone-Millville","Public School District","Superintendent","Jason Defalco","175 Lincoln Street","","Blackstone","MA","01504","Sue Mazzarella","781-338-3587","susan.mazzarella@mass.gov",null,39,null,1,"Yes","317",1603,null,0,172592,141968]
[42,"08060000","Blue Hills Regional Vocational Technical","Public School District","Superintendent","Jill Rossetti","800 Randolph Street","","Canton","MA","02021","Alex Chiu","781-338-3586","alexandria.w.chiu@mass.gov",null,6,null,8,"No","307",841,null,0,119666,98433]
[43,"00350000","Boston","Public School District","Superintendent","Brenda Cassellius","2300 Washington Street","","Roxbury","MA","02119","Julia Foodman","781-338-3577","julia.b.foodman@mass.gov",null,15262,null,4293,"Yes","36931",47684,null,1543864.3431999995,39381724,32345848]
[44,"04490000","Boston Collegiate Charter (District)","Charter District","Charter School Leader","Shannah Varon","11 Mayhew Street","","Dorchester","MA","02125","Julia Foodman","781-338-3577","julia.b.foodman@mass.gov",null,29,null,3,"No","333",700,null,0,284842,234301]
[45,"04240000","Boston Day and Evening Academy Charter (District)","Charter District","Charter School Leader","Alison Hramiec","20 Kearsarge Ave","","Roxbury","MA","02119","Colleen Holforty","781-338-3522","colleen.e.holforty@mass.gov",null,46,null,92,"No","349",379,null,0,363215,298768]
[46,"04110000","Boston Green Academy Horace Mann Charter School (District)","Charter District","Charter School Leader","Matthew Holzer","20 Warren St.","","Brighton","MA","02135","Ellie Rounds-Bloom","781-338-3128","eleanor.rounds@mass.gov",null,68,null,0,"No","424",478,null,0,429827,353561]
[47,"04160000","Boston Preparatory Charter Public (District)","Charter District","Charter School Leader","Sharon Liszanckie","885 River Street","","Hyde Park","MA","02136","Julia Foodman","781-338-3577","julia.b.foodman@mass.gov",null,94,null,0,"No","0",574,null,0,424767,349399]
[48,"04810000","Boston Renaissance Charter Public (District)","Charter District","Charter School Leader","Alexandra Banhares-Buckmire","1415 Hyde Park Ave","","Hyde Park","MA","02136","Alex Lilley","781-338-6212","alex.j.lilley@mass.gov",null,109,null,8,"No","651",825,null,0,664839,546873]
[49,"00360000","Bourne","Public School District","Superintendent","Kerri Quinlan-Zhou","36 Sandwich Rd","","Bourne","MA","02532","Beth O'Connell","781-338-3132","elizabeth.a.o'connell@mass.gov",null,14,null,51,"Yes","334",1841,null,0,309082,254240]
[50,"00380000","Boxford","Public School District","Superintendent","Scott Morrison","28 Middleton Road","","Boxford","MA","01921","Russ Fleming","781-338-6259","russellw.fleming@mass.gov",null,6,null,0,"Yes","53",708,null,0,106680,87751]
[51,"00400000","Braintree","Public School District","Superintendent","Frank Hackett","348 Pond Street","","Braintree","MA","02184","Ellie Rounds-Bloom","781-338-3128","eleanor.rounds@mass.gov",null,305,null,0,"Yes","313",5758,null,5022.4461000000001,524664,431571]
[52,"00410000","Brewster","Public School District","Superintendent","Thomas Conrad","78 Eldredge Pkwy","","Orleans","MA","02653","Julia Foodman","781-338-3577","julia.b.foodman@mass.gov",null,10,null,6,"No",{"$error":"#N/A"},433,"SchedA",0,88144,72504]
[53,"04170000","Bridge Boston Charter School (District)","Charter District","Charter School Leader","Craig Martin","435 Warren St.","","Roxbury","MA","02119","Beth O'Connell","781-338-3132","elizabeth.a.o'connell@mass.gov",null,77,null,10,"No","296",304,null,0,278059,228722]
[54,"06250000","Bridgewater-Raynham","Public School District","Superintendent","Derek Swenson","166 Mt. Prospect Street","","Bridgewater","MA","02324","Alex Lilley","781-338-6212","alex.j.lilley@mass.gov",null,113,null,26,"Yes","520",5292,null,5159.9428000000007,542689,446397]
[55,"00430000","Brimfield","Public School District","Superintendent","Erin Nosek","320A Brookfield Rd","","Fiskdale","MA","01518","Russ Fleming","781-338-6259","russellw.fleming@mass.gov",null,2,null,0,"Yes",{"$error":"#N/A"},276,"SchedA",0,57550,47339]
[56,"09100000","Bristol County Agricultural","Public School District","Superintendent","Adele Sands","135 Center Street","","Dighton","MA","02715","Nancy Labrie","781-338-3536","nancy.h.labrie@mass.gov",null,0,null,0,"Yes","160",437,null,0,67992,55928]
[57,"08100000","Bristol-Plymouth Regional Vocational Technical","Public School District","Superintendent","Alexandre Magalhaes","207 Hart Street","","Taunton","MA","02780","Russ Fleming","781-338-6259","russellw.fleming@mass.gov",null,3,null,5,"No","507",1278,null,0,191354,157401]
[58,"00440000","Brockton","Public School District","Superintendent","Michael Thomas","43 Crescent Street","","Brockton","MA","02301","Sue Mazzarella","781-338-3587","susan.mazzarella@mass.gov",null,4240,null,576,"Yes","4738",15746,null,129099.07130000001,5318693,4374975]
[59,"04280000","Brooke Charter School (District)","Charter District","Charter School Leader","Kimberly Steadman","190 Cummins Highway","","Roslindale","MA","02131","Julia Foodman","781-338-3577","julia.b.foodman@mass.gov",null,133,null,0,"Yes","1312",1965,null,0,1138153,936205]
[60,"00450000","Brookfield","Public School District","Superintendent","Erin Nosek","320 Brookfield Rd","","Fiskdale","MA","01518","Russ Fleming","781-338-6259","russellw.fleming@mass.gov",null,1,null,3,"No",{"$error":"#N/A"},278,"SchedA",0,77173,63480]
[61,"00460000","Brookline","Public School District","Superintendent","Benjamin Lummis","333 Washington Street","","Brookline","MA","02445","Julia Foodman","781-338-3577","julia.b.foodman@mass.gov",null,877,null,21,"Yes","297",7575,null,15361.5,522937,430150]
[62,"00480000","Burlington","Public School District","Superintendent","Eric Conti","123 Cambridge Street","","Burlington","MA","01803","Sue Mazzarella","781-338-3587","susan.mazzarella@mass.gov",null,161,null,7,"Yes","203",3464,null,0,136845,112564]
[63,"00490000","Cambridge","Public School District","Superintendent","Kenneth Salim","135 Berkshire Street","","Cambridge","MA","02141","Alex Lilley","781-338-6212","alex.j.lilley@mass.gov",null,548,null,224,"Yes","943",6626,null,39627.306599999996,1329578,1093665]
[64,"00500000","Canton","Public School District","Superintendent","Jennifer Fischer-Mueller","960 Washington Street","","Canton","MA","02021","Ellie Rounds-Bloom","781-338-3128","eleanor.rounds@mass.gov",null,83,null,24,"Yes","229",3281,null,5591.7225999999991,132707,109160]
[65,"04320000","Cape Cod Lighthouse Charter (District)","Charter District","Charter School Leader","Paul Niles","195 Route 137","","East Harwich","MA","02645","Ellie Rounds-Bloom","781-338-3128","eleanor.rounds@mass.gov",null,1,null,0,"No","72",241,null,0,21724,20000]
[66,"08150000","Cape Cod Regional Vocational Technical","Public School District","Superintendent","Robert Sanborn","351 Pleasant Lake Avenue","","Harwich","MA","02645","Julia Foodman","781-338-3577","julia.b.foodman@mass.gov",null,17,null,0,"No","357",599,null,0,131741,108365]
[67,"00510000","Carlisle","Public School District","Superintendent","James O'Shea","83 School Street","","Carlisle","MA","01741","Nancy Labrie","781-338-3536","nancy.h.labrie@mass.gov",null,18,null,0,"Yes","23",594,null,0,11929,20000]
[68,"00520000","Carver","Public School District","Superintendent","Scott Knief","3 Carver Square Blvd.","","Carver","MA","02330","Nancy Labrie","781-338-3536","nancy.h.labrie@mass.gov",null,20,null,1,"Yes","290",1523,null,0,170393,140160]
[69,"06350000","Central Berkshire","Public School District","Superintendent","Laurie Casna","PO Box 299","Rt 8","Dalton","MA","01227","Alex Lilley","781-338-6212","alex.j.lilley@mass.gov",null,5,null,8,"Yes","713",1526,null,7489.9230000000007,389355,320270]
[70,"00560000","Chelmsford","Public School District","Superintendent","Roger Lang","230 North Road","","Chelmsford","MA","01824","Russ Fleming","781-338-6259","russellw.fleming@mass.gov",null,202,null,0,"Yes","658",4928,null,0,378748,311545]
[71,"00570000","Chelsea","Public School District","Superintendent","Almudena Abeyta","500 Broadway","Room 216","Chelsea","MA","02150","Julia Foodman","781-338-3577","julia.b.foodman@mass.gov",null,2191,null,506,"Yes","3628",6120,null,56282.312899999997,3153324,2593816]
[72,"06320000","Chesterfield-Goshen","Public School District","Superintendent","Aaron Osborne","PO Box 300","","Chesterfield","MA","01012","Nancy Labrie","781-338-3536","nancy.h.labrie@mass.gov",null,null,null,null,null,null,118,null,0,0,20000]
[73,"00610000","Chicopee","Public School District","Superintendent","Lynn Clark","180 Broadway Street","","Chicopee","MA","01020","Beth O'Connell","781-338-3132","elizabeth.a.o'connell@mass.gov",null,453,null,175,"Yes","2528",7008,null,36183.589999999997,2989186,2449340]
[74,"04180000","Christa McAuliffe Charter Public (District)","Charter District","Charter School Leader","Dayshel Reid","139 Newbury St","","Framingham","MA","01701","Sue Mazzarella","781-338-3587","susan.mazzarella@mass.gov",null,10,null,0,"Yes","149",392,null,0,57046,46924]
[75,"04370000","City on a Hill Charter Public School Circuit Street (District)","Charter District","Charter School Leader","Kevin Taylor","15 Allerton Street","Suite 1","Roxbury","MA","02119","Julia Foodman","781-338-3577","julia.b.foodman@mass.gov",null,37,null,2,"No","221",200,null,0,221317,182048]
[76,"35040000","City on a Hill Charter Public School Dudley Square (District)","Charter District","Charter School Leader","Kevin Taylor","15 Allerton Street","Suite","Roxbury","MA","02119","Julia Foodman","781-338-3577","julia.b.foodman@mass.gov",null,53,null,7,"Yes","214",179,null,0,209557,172375]
[77,"00630000","Clarksburg","Public School District","Superintendent","John Franzoni","777 West Crossroad","","Clarksburg","MA","01247","Sue Mazzarella","781-338-3587","susan.mazzarella@mass.gov",null,0,null,0,"No","211",194,null,0,29992,24670]
[78,"00640000","Clinton","Public School District","Superintendent","Steven Meyer","150 School Street","","Clinton","MA","01510","Alex Chiu","781-338-3586","alexandria.w.chiu@mass.gov",null,216,null,8,"Yes","821",1841,null,0,350972,288698]
[79,"04380000","Codman Academy Charter Public (District)","Charter District","Charter School Leader","Thabiti Brown","637 Washington Street","","Dorchester","MA","02124","Julia Foodman","781-338-3577","julia.b.foodman@mass.gov",null,23,null,21,"Yes","291",326,null,0,248222,204179]
[80,"00650000","Cohasset","Public School District","Superintendent","Patrick Sullivan","143 Pond Street","","Cohasset","MA","02025","Ellie Rounds-Bloom","781-338-3128","eleanor.rounds@mass.gov",null,4,null,0,"Yes","27",1491,null,0,64657,53185]
[81,"35030000","Collegiate Charter School of Lowell (District)","Charter District","Charter School Leader","Laurie Hodgdon","1857 Middlesex Street","","Lowell","MA","01851","Sue Mazzarella","781-338-3587","susan.mazzarella@mass.gov",null,220,null,0,"Yes","555",934,null,0,323521,266118]
[82,"04360000","Community Charter School of Cambridge (District)","Charter District","Charter School Leader","Rebecca Norris","245 Bent Street","","Cambridge","MA","02141","Nancy Labrie","781-338-3536","nancy.h.labrie@mass.gov",null,13,null,5,"No","171",320,null,0,99512,81855]
[83,"04260000","Community Day Charter Public School - Gateway (District)","Charter District","Charter School Leader","Mary Chance","190 Hampshire Street","","Lawrence","MA","01840","Colleen Holforty","781-338-3522","colleen.e.holforty@mass.gov",null,74,null,0,"Yes","232",360,null,0,190939,157060]
[84,"04400000","Community Day Charter Public School - Prospect (District)","Charter District","Charter School Leader","Mary Chance","190 Hampshire Street","","Lawrence","MA","01840","Colleen Holforty","781-338-3522","colleen.e.holforty@mass.gov",null,121,null,0,"No","322",379,null,0,169675,139569]
[85,"04310000","Community Day Charter Public School - R. Kingman Webster (District)","Charter District","Charter School Leader","Mary Chance","190 Hampshire Street","","Lawrence","MA","01840","Colleen Holforty","781-338-3522","colleen.e.holforty@mass.gov",null,80,null,0,"No","264",359,null,0,176929,145536]
[86,"00670000","Concord","Public School District","Superintendent","Laurie Hunter","120 Meriam Rd","","Concord","MA","01742","Nancy Labrie","781-338-3536","nancy.h.labrie@mass.gov",null,55,null,0,"Yes","59",2072,null,0,151480,112379]
[87,"06400000","Concord-Carlisle","Public School District","Superintendent","Laurie Hunter","120 Meriam Rd","","Concord","MA","01742","Nancy Labrie","781-338-3536","nancy.h.labrie@mass.gov",null,6,null,1,"Yes","106",1311,null,0,31928,26263]
[88,"04390000","Conservatory Lab Charter (District)","Charter District","Charter School Leader","John Chistolini","2120 Dorchester Avenue","","Dorchester","MA","02124","Alex Chiu","781-338-3586","alexandria.w.chiu@mass.gov",null,72,null,0,"No","307",403,null,0,269605,221768]
[89,"00680000","Conway","Public School District","Superintendent","Darius Modestow","113 North Main Street, Office C101","","South Deerfield","MA","01373","Alex Lilley","781-338-6212","alex.j.lilley@mass.gov",null,null,null,null,null,null,116,null,0,0,20000]
[90,"00710000","Danvers","Public School District","Superintendent","Lisa Dana","64 Cabot Road","","Danvers","MA","01923","Sue Mazzarella","781-338-3587","susan.mazzarella@mass.gov",null,38,null,0,"Yes","360",3344,null,0,313912,258214]
[91,"00720000","Dartmouth","Public School District","Superintendent","Bonny Gifford","8 Bush Street","","Dartmouth","MA","02748","Sue Mazzarella","781-338-3587","susan.mazzarella@mass.gov",null,94,null,11,"Yes","444",3518,null,3418.8482999999997,383370,315347]
[92,"00730000","Dedham","Public School District","Superintendent","Michael Welch","100 Whiting Avenue","","Dedham","MA","02026","Beth O'Connell","781-338-3132","elizabeth.a.o'connell@mass.gov",null,179,null,39,"Yes","349",2634,null,0,321205,264212]
[93,"00740000","Deerfield","Public School District","Superintendent","Darius Modestow","113 North Main Street, Office C101","","South Deerfield","MA","01373","Alex Lilley","781-338-6212","alex.j.lilley@mass.gov",null,4,null,0,"No",{"$error":"#N/A"},348,"SchedA",0,32399,26651]
[94,"06450000","Dennis-Yarmouth","Public School District","Superintendent","Carol Woodbury","296 Station Avenue","","South Yarmouth","MA","02664","Sue Mazzarella","781-338-3587","susan.mazzarella@mass.gov",null,288,null,154,"Yes","660",2810,null,0,719552,591879]
[95,"06500000","Dighton-Rehoboth","Public School District","Superintendent","Anthony Azar","2700 Regional Road","","North Dighton","MA","02764","Alex Chiu","781-338-3586","alexandria.w.chiu@mass.gov",null,10,null,9,"Yes","251",2778,null,0,255482,210151]
[96,"00770000","Douglas","Public School District","Superintendent","Kevin Maines","21 Davis Street","","Douglas","MA","01516","Alex Lilley","781-338-6212","alex.j.lilley@mass.gov",null,9,null,0,"Yes","120",1231,null,0,115025,94616]
[97,"00780000","Dover","Public School District","Superintendent","Andrew Keough","157 Farm Street","","Dover","MA","02030","Beth O'Connell","781-338-3132","elizabeth.a.o'connell@mass.gov",null,16,null,0,"Yes","14",488,null,0,12917,20000]
[98,"06550000","Dover-Sherborn","Public School District","Superintendent","Andrew Keough","157 Farm Street","","Dover","MA","02030","Beth O'Connell","781-338-3132","elizabeth.a.o'connell@mass.gov",null,4,null,0,"Yes","21",1215,null,0,45136,37127]
[99,"00790000","Dracut","Public School District","Superintendent","Steven Stone","2063 Lakeview Avenue","","Dracut","MA","01826","Colleen Holforty","781-338-3522","colleen.e.holforty@mass.gov",null,65,null,15,"Yes","927",3687,null,0,497985,409625]
[100,"04070000","Dudley Street Neighborhood Charter School (District)","Charter District","Charter School Leader","Alexandra Soto","6 Shirley Street","","Boston","MA","02119","Beth O'Connell","781-338-3132","elizabeth.a.o'connell@mass.gov",null,68,null,0,"No","214",223,null,0,194187,159732]
[101,"06580000","Dudley-Charlton Reg","Public School District","Superintendent","Steven Lamarche","68 Dudley Oxford Road","","Dudley","MA","01571","Sue Mazzarella","781-338-3587","susan.mazzarella@mass.gov",null,94,null,20,"Yes","749",3613,null,1453.9468000000002,364881,300138]
[102,"00820000","Duxbury","Public School District","Superintendent","John Antonucci","93 Chandler Street","","Duxbury","MA","02332","Nancy Labrie","781-338-3536","nancy.h.labrie@mass.gov",null,9,null,1,"Yes","65",2928,null,0,77014,63349]
[103,"00830000","East Bridgewater","Public School District","Superintendent","Elizabeth Legault","143 Plymouth Street","","East Bridgewater","MA","02333","Russ Fleming","781-338-6259","russellw.fleming@mass.gov",null,20,null,9,"Yes","141",2105,null,0,186713,153584]
[104,"00870000","East Longmeadow","Public School District","Superintendent","Gordon Smith","180 Maple Street","","East Longmeadow","MA","01028","Russ Fleming","781-338-6259","russellw.fleming@mass.gov",null,51,null,0,"Yes","483",2572,null,0,311048,255857]
[105,"00850000","Eastham","Public School District","Superintendent","Thomas Conrad","78 Eldredge Pkwy","","Orleans","MA","02653","Julia Foodman","781-338-3577","julia.b.foodman@mass.gov",null,5,null,0,"Yes",{"$error":"#N/A"},170,"SchedA",0,17126,20000]
[106,"00860000","Easthampton","Public School District","Superintendent","Allison Leclair","50 Payson Avenue","Second Floor","Easthampton","MA","01027","Beth O'Connell","781-338-3132","elizabeth.a.o'connell@mass.gov",null,41,null,11,"Yes","313",1494,null,0,223825,184111]
[107,"00880000","Easton","Public School District","Superintendent","Lisha Cabral","50 Oliver Street","","North Easton","MA","02356","Alex Lilley","781-338-6212","alex.j.lilley@mass.gov",null,65,null,10,"Yes","369",3552,null,0,285442,234794]
[108,"00890000","Edgartown","Public School District","Superintendent","Matthew D'Andrea","4 Pine Street","","Vineyard Haven","MA","02568","Sue Mazzarella","781-338-3587","susan.mazzarella@mass.gov",null,81,null,0,"No",{"$error":"#N/A"},391,"SchedA",0,31277,25727]
[109,"04520000","Edward M. Kennedy Academy for Health Careers (Horace Mann Charter) (District)","Charter District","Charter School Leader","Caren Walker Gregory","360 Huntington Avenue","c/o 102 Cahners Hall","Boston","MA","02115","Sue Mazzarella","781-338-3587","susan.mazzarella@mass.gov",null,63,null,0,"Yes","330",372,null,0,300359,247065]
[110,"00910000","Erving","Public School District","Superintendent","Jennifer Culkeen","18 Pleasant Street","","Erving","MA","01344","Nancy Labrie","781-338-3536","nancy.h.labrie@mass.gov",null,2,null,0,"No","46",107,null,0,32610,26824]
[111,"08170000","Essex North Shore Agricultural and Technical School District","Public School District","Superintendent","Heidi Riccio","565 Maple Street","P.O. Box 346","Hathorne","MA","01937","Alex Chiu","781-338-3586","alexandria.w.chiu@mass.gov",null,2,null,4,"Yes","397",1475,null,0,145772,119907]
[112,"00930000","Everett","Public School District","Superintendent","Priya Tahiliani","121 Vine Street","","Everett","MA","02149","Ellie Rounds-Bloom","781-338-3128","eleanor.rounds@mass.gov",null,1669,null,125,"Yes","2200",6969,null,41742.555500000002,1899898,1562791]
[113,"04100000","Excel Academy Charter (District)","Charter District","Charter School Leader","Owen Stearns","58 Moore Street","","East Boston","MA","02128","Alex Chiu","781-338-3586","alexandria.w.chiu@mass.gov",null,152,null,15,"Yes","886",1345,null,0,616478,507094]
[114,"00940000","Fairhaven","Public School District","Superintendent","Robert Baldwin","128 Washington Street","","Fairhaven","MA","02719","Alex Chiu","781-338-3586","alexandria.w.chiu@mass.gov",null,33,null,7,"Yes","638",2003,null,6686.4575999999997,394854,324793]
[115,"00950000","Fall River","Public School District","Superintendent","Matthew Malone","417 Rock Street","","Fall River","MA","02720","Sue Mazzarella","781-338-3587","susan.mazzarella@mass.gov",null,1714,null,434,"Yes","5671",10153,null,243153.1802,5826723,4730769]
[116,"00960000","Falmouth","Public School District","Superintendent","Lori Duerr","340 Teaticket Hwy","","East Falmouth","MA","02536","Beth O'Connell","781-338-3132","elizabeth.a.o'connell@mass.gov",null,110,null,33,"Yes","538",3159,null,0,474300,390143]
[117,"06620000","Farmington River Reg","Public School District","Superintendent","Thomas Nadolny","555 N Main Street","PO Box 679","Otis","MA","01253","Ellie Rounds-Bloom","781-338-3128","eleanor.rounds@mass.gov",null,0,null,0,"No","56",89,null,0,31626,26015]
[118,"00970000","Fitchburg","Public School District","Superintendent","Robert Jokela","376 South Street","","Fitchburg","MA","01420","Russ Fleming","781-338-6259","russellw.fleming@mass.gov",null,843,null,484,"Yes","2910",5313,null,16104.3074,2495170,2033853]
[119,"00980000","Florida","Public School District","Superintendent","John Franzoni","56 North County Rd","","Florida","MA","01247","Sue Mazzarella","781-338-3587","susan.mazzarella@mass.gov",null,0,null,0,"Yes",{"$error":"#N/A"},74,"SchedA",0,20713,20000]
[120,"04130000","Four Rivers Charter Public (District)","Charter District","Charter School Leader","Peter Garbus","248 Colrain Road","","Greenfield","MA","01301","Sue Mazzarella","781-338-3587","susan.mazzarella@mass.gov",null,0,null,0,"No","85",213,null,0,36211,29786]
[121,"00990000","Foxborough","Public School District","Superintendent","Amy Berdos","60 South Street","C/O Igo Administration Building","Foxborough","MA","02035","Ellie Rounds-Bloom","781-338-3128","eleanor.rounds@mass.gov",null,66,null,19,"Yes","109",2482,null,0,103156,84852]
[122,"04460000","Foxborough Regional Charter (District)","Charter District","Charter School Leader","Mark Logan","131 Central Street","35 Commercial Street","Foxborough","MA","02035","Nancy Labrie","781-338-3536","nancy.h.labrie@mass.gov",null,147,null,10,"No","514",1637,null,0,186014,153009]
[123,"01000000","Framingham","Public School District","Superintendent","Robert Tremblay","73 Mt. Wayte Avenue","Suite 5","Framingham","MA","01702","Colleen Holforty","781-338-3522","colleen.e.holforty@mass.gov",null,2001,null,365,"Yes","1591",9080,null,13747.282999999999,2202739,1749473]
[124,"04780000","Francis W. Parker Charter Essential (District)","Charter District","Charter School Leader","Todd Sumner","49 Antietam Street","","Devens","MA","01434","Julia Foodman","781-338-3577","julia.b.foodman@mass.gov",null,null,null,null,null,null,396,null,0,0,20000]
[125,"01010000","Franklin","Public School District","Superintendent","Sara Ahern","355 East Central Street","","Franklin","MA","02038","Nancy Labrie","781-338-3536","nancy.h.labrie@mass.gov",null,78,null,5,"Yes","205",5015,null,725.14080000000001,149817,123235]
[126,"08180000","Franklin County Regional Vocational Technical","Public School District","Superintendent","Richard Martin","82 Industrial Blvd","","Turners Falls","MA","01376","Sue Mazzarella","781-338-3587","susan.mazzarella@mass.gov",null,0,null,12,"No","253",496,null,0,110414,90822]
[127,"06650000","Freetown-Lakeville","Public School District","Superintendent","Richard Medeiros","98 Howland Rd","","Lakeville","MA","02347","Colleen Holforty","781-338-3522","colleen.e.holforty@mass.gov",null,18,null,0,"Yes","410",2810,null,0,325293,253607]
[128,"06700000","Frontier","Public School District","Superintendent","Darius Modestow","113 North Main Street, Office C101","","South Deerfield","MA","01373","Alex Lilley","781-338-6212","alex.j.lilley@mass.gov",null,7,null,0,"Yes","275",648,null,0,48684,40046]
[129,"01030000","Gardner","Public School District","Superintendent","Mark Pellegrino","70 Waterford Street","","Gardner","MA","01440","Russ Fleming","781-338-6259","russellw.fleming@mass.gov",null,100,null,74,"Yes","1299",2277,null,8482.7734999999993,927824,763196]
[130,"06720000","Gateway","Public School District","Superintendent","David Hopson","12 Littleville Road","","Huntington","MA","01050","Russ Fleming","781-338-6259","russellw.fleming@mass.gov",null,18,null,12,"Yes","67",771,null,0,147839,121608]
[131,"01050000","Georgetown","Public School District","Superintendent","Carol Jacobs","51 North Street","","Georgetown","MA","01833","Julia Foodman","781-338-3577","julia.b.foodman@mass.gov",null,3,null,0,"Yes","93",1301,null,0,45958,37804]
[132,"06740000","Gill-Montague","Public School District","Superintendent","Michael Sullivan","35 Crocker Avenue","","Turners Falls","MA","01376","Beth O'Connell","781-338-3132","elizabeth.a.o'connell@mass.gov",null,52,null,3,"Yes","323",894,null,0,307129,252634]
[133,"04960000","Global Learning Charter Public (District)","Charter District","Charter School Leader","Stephen Furtado","190 Ashley Boulevard","","New Bedford","MA","02746","Julia Foodman","781-338-3577","julia.b.foodman@mass.gov",null,52,null,0,"Yes","413",499,null,0,227839,187413]
[134,"01070000","Gloucester","Public School District","Superintendent","Richard Safier","2 Blackburn Drive","","Gloucester","MA","01930","Beth O'Connell","781-338-3132","elizabeth.a.o'connell@mass.gov",null,185,null,0,"Yes","850",2784,null,4007.3341,572616,471014]
[135,"01100000","Grafton","Public School District","Superintendent","James Cummings","30 Providence Rd","","Grafton","MA","01519","Alex Lilley","781-338-6212","alex.j.lilley@mass.gov",null,52,null,15,"Yes","269",3098,null,781.90409999999997,106240,80673]
[136,"01110000","Granby","Public School District","Superintendent","Sheryl Stanton","387 East State Street","","Granby","MA","01033","Ellie Rounds-Bloom","781-338-3128","eleanor.rounds@mass.gov",null,31,null,0,"Yes","173",729,null,0,84824,69773]
[137,"08210000","Greater Fall River Regional Vocational Technical","Public School District","Superintendent","Elvio Ferreira","251 Stonehaven Rd","","Fall River","MA","02723","Alex Chiu","781-338-3586","alexandria.w.chiu@mass.gov",null,21,null,5,"Yes","806",1412,null,0,422018,347137]
[138,"08230000","Greater Lawrence Regional Vocational Technical","Public School District","Superintendent","John Lavoie","57 River Rd","","Andover","MA","01810","Ellie Rounds-Bloom","781-338-3128","eleanor.rounds@mass.gov",null,202,null,55,"No","1312",1581,null,0,706270,580954]
[139,"08280000","Greater Lowell Regional Vocational Technical","Public School District","Superintendent","Jill Davis","250 Pawtucket Blvd","","Tyngsborough","MA","01879","Alex Chiu","781-338-3586","alexandria.w.chiu@mass.gov",null,164,null,9,"Yes","1528",2215,null,0,713936,587259]
[140,"08250000","Greater New Bedford Regional Vocational Technical","Public School District","Superintendent","James O'Brien","1121 Ashley Blvd","","New Bedford","MA","02745","Colleen Holforty","781-338-3522","colleen.e.holforty@mass.gov",null,71,null,17,"No","1290",2090,null,0,653757,537758]
[141,"01140000","Greenfield","Public School District","Superintendent","Jordana Harper","195 Federal Street, Suite 100","","Greenfield","MA","01301","Alex Lilley","781-338-6212","alex.j.lilley@mass.gov",null,99,null,52,"Yes","1216",1635,null,0,583152,472299]
[142,"39010000","Greenfield Commonwealth Virtual District","Public School District","Superintendent","Salah Khelfaoui","238 Main St.","3rd Floor","Greenfield","MA","01301","Nancy Labrie","781-338-3536","nancy.h.labrie@mass.gov",null,12,null,7,"No","459",732,null,0,231363,190311]
[143,"06730000","Groton-Dunstable","Public School District","Superintendent","Laura Chesson","344 Main Street","","Groton","MA","01450","Alex Chiu","781-338-3586","alexandria.w.chiu@mass.gov",null,25,null,0,"Yes","151",2314,null,0,48434,39840]
[144,"01170000","Hadley","Public School District","Superintendent","Anne McKenzie","125 Russell Street","","Hadley","MA","01035","Nancy Labrie","781-338-3536","nancy.h.labrie@mass.gov",null,31,null,0,"Yes","80",515,null,0,61344,50459]
[145,"01180000","Halifax","Public School District","Superintendent","Jill Proulx","250 Pembroke Street","","Kingston","MA","02364","Nancy Labrie","781-338-3536","nancy.h.labrie@mass.gov",null,7,null,0,"Yes",{"$error":"#N/A"},609,"SchedA",0,62137,51112]
[146,"06750000","Hamilton-Wenham","Public School District","Superintendent","Julie Kukenberger","5 School Street","","Wenham","MA","01984","Sue Mazzarella","781-338-3587","susan.mazzarella@mass.gov",null,11,null,0,"Yes","66",1830,null,0,93096,76577]
[147,"04990000","Hampden Charter School of Science East (District)","Charter District","Charter School Leader","Tarkan Topcuoglu","20 Johnson Road","","Chicopee","MA","01022","Beth O'Connell","781-338-3132","elizabeth.a.o'connell@mass.gov",null,17,null,0,"Yes","299",523,null,0,238235,195964]
[148,"35160000","Hampden Charter School of Science West (District)","Charter District","Charter School Leader","Tarkan Topcuoglu","511 Main St.","","West Springfield","MA","01089","Beth O'Connell","781-338-3132","elizabeth.a.o'connell@mass.gov",null,26,null,0,"Yes","165",258,null,0,123723,101770]
[149,"06800000","Hampden-Wilbraham","Public School District","Superintendent","Albert Ganem","621 Main Street","","Wilbraham","MA","01095","Alex Lilley","781-338-6212","alex.j.lilley@mass.gov",null,25,null,0,"Yes","353",2919,null,0,281218,231320]
[150,"06830000","Hampshire","Public School District","Superintendent","Aaron Osborne","19 Stage Rd","","Westhampton","MA","01027","Nancy Labrie","781-338-3536","nancy.h.labrie@mass.gov",null,11,null,0,"Yes","326",738,null,0,26584,21867]
[151,"01210000","Hancock","Public School District","Superintendent","Peter Dillon","1831 STATE ROAD","","RICHMOND","MA","01254","Julia Foodman","781-338-3577","julia.b.foodman@mass.gov",null,null,null,null,null,null,41,null,0,0,20000]
[152,"01220000","Hanover","Public School District","Superintendent","Matthew Ferron","188 Broadway Street","","Hanover","MA","02339","Beth O'Connell","781-338-3132","elizabeth.a.o'connell@mass.gov",null,24,null,1,"Yes","128",2595,null,0,61917,50931]
[153,"01250000","Harvard","Public School District","Superintendent","Linda Dwight","39 Massachusetts Avenue","","Harvard","MA","01451","Sue Mazzarella","781-338-3587","susan.mazzarella@mass.gov",null,17,null,30,"Yes","94",1043,null,0,135272,111270]
[154,"01270000","Hatfield","Public School District","Superintendent","John Robert","34 School Street","","Hatfield","MA","01038","Alex Lilley","781-338-6212","alex.j.lilley@mass.gov",null,0,null,0,"Yes","64",420,null,0,21524,20000]
[155,"01280000","Haverhill","Public School District","Superintendent","Margaret Marotta","4 Summer Street","","Haverhill","MA","01830","Ellie Rounds-Bloom","781-338-3128","eleanor.rounds@mass.gov",null,771,null,249,"Yes","5451",7922,null,15493.648900000002,2299824,1891756]
[156,"06850000","Hawlemont","Public School District","Superintendent","Patricia Bell","24 Ashfield Rd","","Shelburne Falls","MA","01370","Alex Lilley","781-338-6212","alex.j.lilley@mass.gov",null,0,null,0,"No","86",121,null,0,25863,21274]
[157,"04190000","Helen Y. Davis Leadership Academy Charter Public (District)","Charter District","Charter School Leader","Chris Coblyn","23 Leonard Street","","Boston","MA","02122","Alex Lilley","781-338-6212","alex.j.lilley@mass.gov",null,16,null,0,"Yes","190",201,null,0,165994,136541]
[158,"04550000","Hill View Montessori Charter Public (District)","Charter District","Charter School Leader","Phil Arnold","75 Foundation Ave","Ward Hill Business Park","Haverhill","MA","01835","Ellie Rounds-Bloom","781-338-3128","eleanor.rounds@mass.gov",null,33,null,0,"Yes","91",317,null,0,31326,25768]
[159,"04500000","Hilltown Cooperative Charter Public (District)","Charter District","Charter School Leader","Daniel Klatz","1 Industrial Parkway","","Easthampton","MA","01039","Beth O'Connell","781-338-3132","elizabeth.a.o'connell@mass.gov",null,0,null,0,"No","51",218,null,0,18800,20000]
[160,"01310000","Hingham","Public School District","Superintendent","Paul Austin","220 Central Street","","Hingham","MA","02043","Ellie Rounds-Bloom","781-338-3128","eleanor.rounds@mass.gov",null,15,null,0,"Yes","74",4209,null,20151.870599999998,156156,128449]
[161,"01330000","Holbrook","Public School District","Superintendent","Julie Hamilton","245 So. Franklin Street","","Holbrook","MA","02343","Nancy Labrie","781-338-3536","nancy.h.labrie@mass.gov",null,95,null,0,"Yes","576",1282,null,8243.2307999999994,224350,184543]
[162,"01350000","Holland","Public School District","Superintendent","Erin Nosek","320 Brookfield Rd","","Fiskdale","MA","01518","Russ Fleming","781-338-6259","russellw.fleming@mass.gov",null,0,null,0,"Yes",{"$error":"#N/A"},195,"SchedA",0,29688,24421]
[163,"01360000","Holliston","Public School District","Superintendent","Bradford Jackson","370 Hollis Street","","Holliston","MA","01746","Julia Foodman","781-338-3577","julia.b.foodman@mass.gov",null,67,null,0,"No","74",2828,null,0,66678,54847]
[164,"01370000","Holyoke","Public School District","Superintendent","Stephen Zrike","57 Suffolk Street","","Holyoke","MA","01040","Alex Lilley","781-338-6212","alex.j.lilley@mass.gov",null,1161,null,754,"Yes","5164",5021,null,42739.663,5178147,4251035]
[165,"04530000","Holyoke Community Charter (District)","Charter District","Charter School Leader","Sonia Pope","2200 Northampton Street","","Holyoke","MA","01040","Alex Lilley","781-338-6212","alex.j.lilley@mass.gov",null,107,null,9,"No","701",702,null,0,587410,483183]
[166,"01380000","Hopedale","Public School District","Superintendent","Karen Crebase","25 Adin Street","","Hopedale","MA","01747","Sue Mazzarella","781-338-3587","susan.mazzarella@mass.gov",null,20,null,0,"No","158",1007,null,0,79782,65626]
[167,"01390000","Hopkinton","Public School District","Superintendent","Carol Cavanaugh","89 Hayden Rowe Street","","Hopkinton","MA","01748","Alex Lilley","781-338-6212","alex.j.lilley@mass.gov",null,193,null,0,"Yes","284",3838,null,0,59668,49081]
[168,"01410000","Hudson","Public School District","Superintendent","Marco Rodrigues","155 Apsley Street","","Hudson","MA","01749","Ellie Rounds-Bloom","781-338-3128","eleanor.rounds@mass.gov",null,242,null,15,"Yes","397",2585,null,780.05280000000005,310842,255688]
[169,"01420000","Hull","Public School District","Superintendent","Michael Devine","18 Harborview Road","","Hull","MA","02045","Alex Chiu","781-338-3586","alexandria.w.chiu@mass.gov",null,3,null,0,"Yes","171",818,null,0,149264,122779]
[170,"04350000","Innovation Academy Charter (District)","Charter District","Charter School Leader","Gregory Orpen","72 Tyng Road","","Tyngsborough","MA","01879","Colleen Holforty","781-338-3522","colleen.e.holforty@mass.gov",null,14,null,0,"No","122",793,null,0,58796,48364]
[171,"01440000","Ipswich","Public School District","Superintendent","Brian Blake","1 Lord Square","","Ipswich","MA","01938","Nancy Labrie","781-338-3536","nancy.h.labrie@mass.gov",null,34,null,19,"Yes","105",1667,null,0,177237,145789]
[172,"06900000","King Philip","Public School District","Superintendent","Paul Zinni","18 King Street","","Norfolk","MA","02056","Nancy Labrie","781-338-3536","nancy.h.labrie@mass.gov",null,13,null,0,"Yes","131",1998,null,0,53410,43934]
[173,"01450000","Kingston","Public School District","Superintendent","Jill Proulx","250 Pembroke Street","","Kingston","MA","02364","Nancy Labrie","781-338-3536","nancy.h.labrie@mass.gov",null,23,null,19,"Yes",{"$error":"#N/A"},1100,"SchedA",0,51481,42346]
[174,"04630000","KIPP Academy Boston Charter School (District)","Charter District","Charter School Leader","Caleb Dolan","37 Babson Street","KIPP Academy Boston","Mattapan","MA","02126","Beth O'Connell","781-338-3132","elizabeth.a.o'connell@mass.gov",null,167,null,0,"No","595",597,null,0,552481,454452]
[175,"04290000","KIPP Academy Lynn Charter (District)","Charter District","Charter School Leader","Caleb Dolan","90 High Rock Street","","Lynn","MA","01902","Beth O'Connell","781-338-3132","elizabeth.a.o'connell@mass.gov",null,274,null,10,"Yes","1098",1590,null,0,500238,411478]
[176,"01490000","Lawrence","Public School District","Superintendent","Cynthia Paris","237 Essex Street","","Lawrence","MA","01840","Russ Fleming","781-338-6259","russellw.fleming@mass.gov",null,4764,null,584,"Yes","9126",13176,null,565469.11170000001,7780403,6399893]
[177,"04540000","Lawrence Family Development Charter (District)","Charter District","Charter School Leader","Ralph Carrero","34 West Street","","Lawrence","MA","01841","Ellie Rounds-Bloom","781-338-3128","eleanor.rounds@mass.gov",null,166,null,0,"No","594",696,null,0,340420,280018]
[178,"04860000","Learning First Charter Public School(District)","Charter District","Charter School Leader","Leo Flanagan","51 Gage Street","","Worcester","MA","01605","Julia Foodman","781-338-3577","julia.b.foodman@mass.gov",null,35,null,13,"Yes","613",668,null,0,327391,269301]
[179,"01500000","Lee","Public School District","Superintendent","Michael Richard","300A Greylock St","","Lee","MA","01238","Sue Mazzarella","781-338-3587","susan.mazzarella@mass.gov",null,41,null,10,"Yes","205",688,null,2434.4360000000001,85714,70505]
[180,"01510000","Leicester","Public School District","Superintendent","Marilyn Tencza","3 Washburn Square","3rd Floor","Leicester","MA","01524","Colleen Holforty","781-338-3522","colleen.e.holforty@mass.gov",null,18,null,0,"Yes","386",1452,null,0,203758,163524]
[181,"01520000","Lenox","Public School District","Superintendent","William Cameron","6 Walker Street","","Lenox","MA","01240","Ellie Rounds-Bloom","781-338-3128","eleanor.rounds@mass.gov",null,701,null,613,"Yes","75",757,null,8149.1646000000001,161093,94863]
[182,"01540000","Leverett","Public School District","Superintendent","Jennifer Culkeen","18 Pleasant Street","","Erving","MA","01344","Nancy Labrie","781-338-3536","nancy.h.labrie@mass.gov",null,null,null,null,null,null,121,null,0,0,20000]
[183,"01530000","Leominster","Public School District","Superintendent","Paula Deacon","24 Church Street","","Leominster","MA","01453","Colleen Holforty","781-338-3522","colleen.e.holforty@mass.gov",null,628,null,0,"Yes","3697",6043,null,25332.731599999999,1537767,1264914]
[184,"01550000","Lexington","Public School District","Superintendent","Julie Hackett","146 Maple Street","","Lexington","MA","02420","Russ Fleming","781-338-6259","russellw.fleming@mass.gov",null,76,null,0,"Yes","72",7285,null,0,199384,149737]
[185,"35140000","Libertas Academy Charter School (District)","Charter District","Charter School Leader","Modesto Montero","146 Chestnut Street","","Springfield","MA","01103","Ellie Rounds-Bloom","781-338-3128","eleanor.rounds@mass.gov",null,57,null,0,"Yes","165",254,null,0,242077,199124]
[186,"01570000","Lincoln","Public School District","Superintendent","Rebecca McFall","1 Ballfield Road","","Lincoln","MA","01773","Julia Foodman","781-338-3577","julia.b.foodman@mass.gov",null,10,null,2,"Yes","5",1061,null,0,24424,20090]
[187,"06950000","Lincoln-Sudbury","Public School District","Superintendent","Bella Wong","390 Lincoln Rd","","Sudbury","MA","01776","Russ Fleming","781-338-6259","russellw.fleming@mass.gov",null,30,null,2,"Yes","125",1533,null,0,36314,29871]
[188,"01580000","Littleton","Public School District","Superintendent","Kelly Clenchy","PO Box 1486","","Littleton","MA","01460","Beth O'Connell","781-338-3132","elizabeth.a.o'connell@mass.gov",null,26,null,0,"Yes","80",1633,null,0,59049,41118]
[189,"01590000","Longmeadow","Public School District","Superintendent","Maurice O'shea","535 Bliss Road","","Longmeadow","MA","01106","Sue Mazzarella","781-338-3587","susan.mazzarella@mass.gov",null,3518,null,1009,"Yes","65",2834,null,0,294874,242553]
[190,"01600000","Lowell","Public School District","Superintendent","Joel Boyd","155 Merrimack Street","","Lowell","MA","01852","Nancy Labrie","781-338-3536","nancy.h.labrie@mass.gov",null,391,null,18,"Yes","12037",13945,null,123673.5898,5723478,4707937]
[191,"04560000","Lowell Community Charter Public (District)","Charter District","Charter School Leader","Nicholas Leonardos","206 Jackson Street","","Lowell","MA","01852","Nancy Labrie","781-338-3536","nancy.h.labrie@mass.gov",null,8,null,0,"No","605",769,null,0,283295,233029]
[192,"04580000","Lowell Middlesex Academy Charter (District)","Charter District","Charter School Leader","Margaret McDevitt","67 Middle St","","Lowell","MA","01852","Russ Fleming","781-338-6259","russellw.fleming@mass.gov",null,65,null,12,"Yes","92",101,null,0,42438,34908]
[193,"01610000","Ludlow","Public School District","Superintendent","Todd Gazda","63 Chestnut Street","","Ludlow","MA","01056","Alex Chiu","781-338-3586","alexandria.w.chiu@mass.gov",null,24,null,6,"Yes","504",2461,null,4298.4479000000001,438119,360382]
[194,"01620000","Lunenburg","Public School District","Superintendent","Kathleen Burnham","1025 Mass Avenue","","Lunenburg","MA","01462","Colleen Holforty","781-338-3522","colleen.e.holforty@mass.gov",null,4063,null,1114,"Yes","197",1619,null,0,240799,198073]
[195,"01630000","Lynn","Public School District","Superintendent","Patrick Tutwiler","100 Bennett St","","Lynn","MA","01905","Colleen Holforty","781-338-3522","colleen.e.holforty@mass.gov",null,47,null,0,"Yes","13857",15888,null,58179.503500000006,5992301,4929062]
[196,"01640000","Lynnfield","Public School District","Superintendent","Jane Tremblay","525 Salem Street","","Lynnfield","MA","01940","Russ Fleming","781-338-6259","russellw.fleming@mass.gov",null,1351,null,173,"Yes","61",2176,null,0,60557,49812]
[197,"01650000","Malden","Public School District","Superintendent","John Oteri","77 Salem Street","","Malden","MA","02148","Julia Foodman","781-338-3577","julia.b.foodman@mass.gov",null,8,null,0,"Yes","3309",6296,null,45938.627999999997,2245802,1847320]
[198,"06980000","Manchester Essex Regional","Public School District","Superintendent","Pamela Beaudoin","PO BOX 1407","","Manchester","MA","01944","Julia Foodman","781-338-3577","julia.b.foodman@mass.gov",null,74,null,18,"Yes","35",1377,null,0,65889,54198]
[199,"01670000","Mansfield","Public School District","Superintendent","Teresa Murphy","2 Park Row","","Mansfield","MA","02048","Beth O'Connell","781-338-3132","elizabeth.a.o'connell@mass.gov",null,0,null,5,"No","184",3575,null,0,176987,145583]
[200,"35170000","Map Academy Charter School (District)","Charter District","Charter School Leader","Rachel Babcock","11 Resnik Road","","Plymouth","MA","02360","Beth O'Connell","781-338-3132","elizabeth.a.o'connell@mass.gov",null,113,null,0,"Yes","101",164,null,0,40636,33426]
[201,"01680000","Marblehead","Public School District","Superintendent","William McAlduff Jr","9 Widger Road","","Marblehead","MA","01945","Sue Mazzarella","781-338-3587","susan.mazzarella@mass.gov",null,3,null,0,"Yes","90",2938,null,0,111373,91612]
[202,"04640000","Marblehead Community Charter Public (District)","Charter District","Charter School Leader","Peter Cohen","17 Lime Street","","Marblehead","MA","01945","Beth O'Connell","781-338-3132","elizabeth.a.o'connell@mass.gov",null,1,null,2,"Yes","46",206,null,0,12114,20000]
[203,"01690000","Marion","Public School District","Superintendent","Douglas White","135 Marion Rd","","Mattapoisett","MA","02739","Colleen Holforty","781-338-3522","colleen.e.holforty@mass.gov",null,1087,null,128,"Yes","130",428,null,0,44698,36767]
[204,"01700000","Marlborough","Public School District","Superintendent","Michael Bergeron","17 Washington Street","","Marlborough","MA","01752","Ellie Rounds-Bloom","781-338-3128","eleanor.rounds@mass.gov",null,41,null,63,"Yes","1355",4648,null,27765.577600000001,924532,745603]
[205,"01710000","Marshfield","Public School District","Superintendent","Jeffrey Granatino","76 South River Street","","Marshfield","MA","02050","Colleen Holforty","781-338-3522","colleen.e.holforty@mass.gov",null,52,null,0,"Yes","385",3867,null,0,377351,310396]
[206,"07000000","Martha's Vineyard","Public School District","Superintendent","Matthew D'Andrea","4 Pine Street","","Vineyard Haven","MA","02568","Sue Mazzarella","781-338-3587","susan.mazzarella@mass.gov",null,7,null,0,"No","539",670,null,0,66415,54631]
[207,"04660000","Martha's Vineyard Charter (District)","Charter District","Charter School Leader","Peter Steedman","PO Box 1150","","West Tisbury","MA","02575","Sue Mazzarella","781-338-3587","susan.mazzarella@mass.gov",null,99,null,21,"Yes","96",177,null,0,33370,27449]
[208,"04920000","Martin Luther King Jr. Charter School of Excellence (District)","Charter District","Charter School Leader","Kendra Salvador","285 Dorset Street","","Springfield","MA","01108","Colleen Holforty","781-338-3522","colleen.e.holforty@mass.gov",null,9,null,0,"Yes","367",354,null,0,326569,268625]
[209,"07050000","Masconomet","Public School District","Superintendent","Michael Harvey","20 Endicott Rd","","Boxford","MA","01921","Sue Mazzarella","781-338-3587","susan.mazzarella@mass.gov",null,46,null,0,"Yes","67",1757,null,0,38998,32079]
[210,"01720000","Mashpee","Public School District","Superintendent","Patricia DeBoer","150-A Old Barnstable Road","","Mashpee","MA","02649","Nancy Labrie","781-338-3536","nancy.h.labrie@mass.gov",null,299,null,0,"No","283",1492,null,0,200583,164992]
[211,"04690000","MATCH Charter Public School (District)","Charter District","Charter School Leader","Nnenna Ude","1001 Commonwealth Avenue","","Boston","MA","02215","Ellie Rounds-Bloom","781-338-3128","eleanor.rounds@mass.gov",null,3,null,1,"Yes","1054",1159,null,0,972233,799725]
[212,"01730000","Mattapoisett","Public School District","Superintendent","Douglas White","135 Marion Rd","","Mattapoisett","MA","02739","Colleen Holforty","781-338-3522","colleen.e.holforty@mass.gov",null,56,null,4,"Yes","42",424,null,0,35084,28859]
[213,"01740000","Maynard","Public School District","Superintendent","Mary Jane Rickson","3-R Tiger Drive","","Maynard","MA","01754","Julia Foodman","781-338-3577","julia.b.foodman@mass.gov",null,442,null,74,"Yes","280",1226,null,0,174300,143374]
[214,"01750000","Medfield","Public School District","Superintendent","Jeffrey Marsden","459 Main St","3rd Fl","Medfield","MA","02052","Beth O'Connell","781-338-3132","elizabeth.a.o'connell@mass.gov",null,null,null,null,null,null,2577,null,0,0,20000]
[215,"01760000","Medford","Public School District","Superintendent","Marice Edouard-Vincent","489 Winthrop Street","","Medford","MA","02155","Sue Mazzarella","781-338-3587","susan.mazzarella@mass.gov",null,29,null,2,"No","763",4054,null,14058.3604,812156,668052]
[216,"01770000","Medway","Public School District","Superintendent","Armand Pires","45 Holliston Street","","Medway","MA","02053","Alex Lilley","781-338-6212","alex.j.lilley@mass.gov",null,189,null,0,"Yes","150",2167,null,0,91387,75172]
[217,"01780000","Melrose","Public School District","Superintendent","Cyndy Taymore","360 Lynn Fells Pkwy","","Melrose","MA","02176","Ellie Rounds-Bloom","781-338-3128","eleanor.rounds@mass.gov",null,32,null,0,"Yes","203",3746,null,0,150437,123744]
[218,"07100000","Mendon-Upton","Public School District","Superintendent","Joseph Maruszczak","150 North Ave","","Mendon","MA","01756","Alex Lilley","781-338-6212","alex.j.lilley@mass.gov",null,679,null,0,"Yes","121",2203,null,0,68687,56500]
[219,"01810000","Methuen","Public School District","Superintendent","Brandi Kwong","10 Ditson Place","","Methuen","MA","01844","Colleen Holforty","781-338-3522","colleen.e.holforty@mass.gov",null,28,null,36,"Yes","2739",6870,null,26890.684200000003,1665111,1323339]
[220,"01820000","Middleborough","Public School District","Superintendent","Brian Lynch","30 Forest Street","","Middleborough","MA","02346","Nancy Labrie","781-338-3536","nancy.h.labrie@mass.gov",null,6,null,0,"Yes","681",2966,null,3856.7511,513651,364274]
[221,"01840000","Middleton","Public School District","Superintendent","Scott Morrison","28 Middleton Road","","Boxford","MA","01921","Russ Fleming","781-338-6259","russellw.fleming@mass.gov",null,746,null,117,"Yes","27",653,null,0,24469,20127]
[222,"01850000","Milford","Public School District","Superintendent","Kevin Mcintyre","31 West Fountain Street","","Milford","MA","01757","Julia Foodman","781-338-3577","julia.b.foodman@mass.gov",null,64,null,0,"Yes","1283",4325,null,0,635159,522460]
[223,"01860000","Millbury","Public School District","Superintendent","Gregory Myers","12 Martin Street","","Millbury","MA","01527","Beth O'Connell","781-338-3132","elizabeth.a.o'connell@mass.gov",null,18,null,4,"Yes","425",1645,null,0,189537,155907]
[224,"01870000","Millis","Public School District","Superintendent","Nancy Gustafson","245 Plain Street","Central Office","Millis","MA","02054","Sue Mazzarella","781-338-3587","susan.mazzarella@mass.gov",null,76,null,0,"Yes","70",1143,null,0,47025,38681]
[225,"01890000","Milton","Public School District","Superintendent","Mary Gormley","25 Gile Road","","Milton","MA","02186","Alex Lilley","781-338-6212","alex.j.lilley@mass.gov",null,11,null,0,"No","114",4334,null,0,136267,112088]
[226,"08300000","Minuteman Regional Vocational Technical","Public School District","Superintendent","Edward Bouquillon","758 Marrett Rd","","Lexington","MA","02421","Julia Foodman","781-338-3577","julia.b.foodman@mass.gov",null,3,null,0,"Yes","166",582,null,0,76807,63179]
[227,"07170000","Mohawk Trail","Public School District","Superintendent","Patricia Bell","24 Ashfield Rd","","Shelburne Falls","MA","01370","Nancy Labrie","781-338-3536","nancy.h.labrie@mass.gov",null,79,null,0,"Yes","229",782,null,0,151532,124645]
[228,"07120000","Monomoy Regional School District","Public School District","Superintendent","Scott Carpenter","425 Crowell Rd","","Chatham","MA","02633","Ellie Rounds-Bloom","781-338-3128","eleanor.rounds@mass.gov",null,9,null,6,"Yes","327",1812,null,0,205470,169013]
[229,"01910000","Monson","Public School District","Superintendent","Cheryl Clarke","P O Box 159","","Monson","MA","01057","Ellie Rounds-Bloom","781-338-3128","eleanor.rounds@mass.gov",null,15,null,7,"No","192",862,null,0,150902,124127]
[230,"08320000","Montachusett Regional Vocational Technical","Public School District","Superintendent","Sheila Harrity","1050 Westminster Street","","Fitchburg","MA","01420","Beth O'Connell","781-338-3132","elizabeth.a.o'connell@mass.gov",null,2,null,0,"Yes","517",1415,null,0,243829,200565]
[231,"07150000","Mount Greylock","Public School District","Superintendent","Kimberley Grady","1781 Cold Spring Rd","","Williamstown","MA","01267","Russ Fleming","781-338-6259","russellw.fleming@mass.gov",null,0,null,0,"No","187",1131,null,0,141609,116483]
[232,"04700000","Mystic Valley Regional Charter (District)","Charter District","Charter School Leader","Alex Dan","4 Laurel Street","","Malden","MA","02148","Colleen Holforty","781-338-3522","colleen.e.holforty@mass.gov",null,null,null,null,null,null,1585,null,0,0,20000]
[233,"01960000","Nahant","Public School District","Superintendent","Anthony Pierantozzi","290 Castle Road","","Nahant","MA","01908","Colleen Holforty","781-338-3522","colleen.e.holforty@mass.gov",null,256,null,0,"Yes","0",121,null,0,15714,20000]
[234,"01970000","Nantucket","Public School District","Superintendent","William Cozort","10 Surfside Road","","Nantucket","MA","02554","Nancy Labrie","781-338-3536","nancy.h.labrie@mass.gov",null,3,null,30,"Yes","405",1617,null,0,133044,109437]
[235,"07200000","Narragansett","Public School District","Superintendent","Christopher Casavant","462 Baldwinville Rd","","Baldwinville","MA","01436","Russ Fleming","781-338-6259","russellw.fleming@mass.gov",null,73,null,1,"Yes",0,1386,null,2985.3429999999998,161900,133174]
[236,"07250000","Nashoba","Public School District","Superintendent","Brooke Clenchy","50 Mechanic Street","","Bolton","MA","01740","Julia Foodman","781-338-3577","julia.b.foodman@mass.gov",null,5,null,0,"Yes","191",3133,null,0,295599,214061]
[237,"08520000","Nashoba Valley Regional Vocational Technical","Public School District","Superintendent","Denise Pigeon","100 Littleton Road","","Westford","MA","01886","Alex Lilley","781-338-6212","alex.j.lilley@mass.gov",null,177,null,40,"Yes","198",702,null,0,80011,65814]
[238,"01980000","Natick","Public School District","Superintendent","Anna Nolin","13 East Central Street","","Natick","MA","01760","Russ Fleming","781-338-6259","russellw.fleming@mass.gov",null,30,null,4,"Yes","195",5435,null,0,394956,279511]
[239,"06600000","Nauset","Public School District","Superintendent","Thomas Conrad","78 Eldredge Pkwy","","Orleans","MA","02653","Julia Foodman","781-338-3577","julia.b.foodman@mass.gov",null,152,null,0,"Yes","566",1487,null,2428.6864999999998,145886,120001]
[240,"01990000","Needham","Public School District","Superintendent","Daniel Gutekanst","1330 Highland Avenue","","Needham","MA","02492","Julia Foodman","781-338-3577","julia.b.foodman@mass.gov",null,66,null,12,"No","54",5691,null,0,123778,81318]
[241,"04440000","Neighborhood House Charter (District)","Charter District","Charter School Leader","Kate Scott","21 Queen Street","","Dorchester","MA","02122","Colleen Holforty","781-338-3522","colleen.e.holforty@mass.gov",null,3604,null,1315,"Yes","368",666,null,0,359839,295991]
[242,"02010000","New Bedford","Public School District","Superintendent","Thomas Anderson","455 County Street","C/O Paul Rodrigues Administration Bldg.","New Bedford","MA","02740","Beth O'Connell","781-338-3132","elizabeth.a.o'connell@mass.gov",null,91,null,5,"Yes","11959",12631,null,245413.78819999995,6921067,5693032]
[243,"35130000","New Heights Charter School of Brockton (District)","Charter District","Charter School Leader","Omari Walker","1690 Main Street","","Brockton","MA","02301","Alex Lilley","781-338-6212","alex.j.lilley@mass.gov",null,0,null,0,"No","309",619,null,0,180335,148337]
[244,"07280000","New Salem-Wendell","Public School District","Superintendent","Jennifer Culkeen","18 Pleasant Street","","Erving","MA","01344","Nancy Labrie","781-338-3536","nancy.h.labrie@mass.gov",null,41,null,12,"Yes","67",128,null,0,29454,24228]
[245,"02040000","Newburyport","Public School District","Superintendent","Sean Gallagher","70 Low Street","","Newburyport","MA","01950","Sue Mazzarella","781-338-3587","susan.mazzarella@mass.gov",null,780,null,18,"Yes","80",2199,null,0,331406,267952]
[246,"02070000","Newton","Public School District","Superintendent","David Fleishman","100 Walnut Street","","Newtonville","MA","02460","Alex Lilley","781-338-6212","alex.j.lilley@mass.gov",null,21,null,0,"No","297",12715,null,12086.1396,910820,745725]
[247,"02080000","Norfolk","Public School District","Superintendent","Ingrid Allardi","70 Boardman Street","","Norfolk","MA","02056","Ellie Rounds-Bloom","781-338-3128","eleanor.rounds@mass.gov",null,1,null,0,"Yes","24",920,null,0,21280,20000]
[248,"09150000","Norfolk County Agricultural","Public School District","Superintendent","Tammy Quinn","400 Main Street","","Walpole","MA","02081","Russ Fleming","781-338-6259","russellw.fleming@mass.gov",null,14,null,70,"Yes","101",546,null,0,43275,35597]
[249,"02090000","North Adams","Public School District","Superintendent","Barbara Malkas","10 Main Street","Second Floor","North Adams","MA","01247","Colleen Holforty","781-338-3522","colleen.e.holforty@mass.gov",null,96,null,21,"Yes","711",1246,null,4165.7123000000001,596973,491049]
[250,"02110000","North Andover","Public School District","Superintendent","Gregg Gilligan","566 Main Street","","North Andover","MA","01845","Russ Fleming","781-338-6259","russellw.fleming@mass.gov",null,113,null,89,"Yes","128",4584,null,0,374736,308245]
[251,"02120000","North Attleborough","Public School District","Superintendent","Scott Holcomb","6 Morse Street","","North Attleborough","MA","02760","Julia Foodman","781-338-3577","julia.b.foodman@mass.gov",null,0,null,0,"No","132",4043,null,3767.7519000000002,501783,412749]
[252,"02150000","North Brookfield","Public School District","Superintendent","Richard Lind","10 New School Drive","","North Brookfield","MA","01535","Alex Lilley","781-338-6212","alex.j.lilley@mass.gov",null,40,null,0,"Yes","168",523,null,0,79023,65002]
[253,"07350000","North Middlesex","Public School District","Superintendent","Brad Morgan","66 Brookline Street","","Towsend","MA","01469","Alex Lilley","781-338-6212","alex.j.lilley@mass.gov",null,13,null,2,"Yes","389",3063,null,0,308928,254114]
[254,"02170000","North Reading","Public School District","Superintendent","Patrick Daly","189 Park Street","","North Reading","MA","01864","Ellie Rounds-Bloom","781-338-3128","eleanor.rounds@mass.gov",null,92,null,26,"Yes","175",2361,null,0,69292,56997]
[255,"02100000","Northampton","Public School District","Superintendent","John Provost","212 Main Street","","Northampton","MA","01060","Nancy Labrie","781-338-3536","nancy.h.labrie@mass.gov",null,7,null,0,"Yes","769",2672,null,0,455000,374267]
[256,"04060000","Northampton-Smith Vocational Agricultural","Public School District","Superintendent","Andrew Linkenhoker","80 Locust Street","","Northampton","MA","01060","Julia Foodman","781-338-3577","julia.b.foodman@mass.gov",null,25,null,0,"No","256",498,null,0,104763,86175]
[257,"07300000","Northboro-Southboro","Public School District","Superintendent","Gregory Martineau","53 Parkerville Road","","Southborough","MA","01772","Beth O'Connell","781-338-3132","elizabeth.a.o'connell@mass.gov",null,81,null,0,"Yes","390",1389,null,1589.9241,33518,27571]
[258,"02130000","Northborough","Public School District","Superintendent","Gregory Martineau","53 Parkerville Road","","Southborough","MA","01772","Beth O'Connell","781-338-3132","elizabeth.a.o'connell@mass.gov",null,48,null,9,"Yes",{"$error":"#N/A"},1618,"SchedA",0,49913,41057]
[259,"02140000","Northbridge","Public School District","Superintendent","Amy McKinstry","87 Linwood Avenue","","Whitinsville","MA","01588","Sue Mazzarella","781-338-3587","susan.mazzarella@mass.gov",null,40,null,0,"No","696",1965,null,0,323158,265818]
[260,"08530000","Northeast Metropolitan Regional Vocational Technical","Public School District","Superintendent","David DiBarri","100 Hemlock Rd","","Wakefield","MA","01880","Ellie Rounds-Bloom","781-338-3128","eleanor.rounds@mass.gov",null,0,null,0,"Yes","661",1256,null,0,295482,243054]
[261,"08510000","Northern Berkshire Regional Vocational Technical","Public School District","Superintendent","James Brosnan","70 Hodges Cross Rd","","North Adams","MA","01247","Alex Chiu","781-338-3586","alexandria.w.chiu@mass.gov",null,29,null,9,"Yes","259",499,null,0,102240,84099]
[262,"02180000","Norton","Public School District","Superintendent","Joseph Baeta","64 West Main Street","","Norton","MA","02766","Colleen Holforty","781-338-3522","colleen.e.holforty@mass.gov",null,5,null,8,"Yes","389",2341,null,1163.6828,227773,187358]
[263,"02190000","Norwell","Public School District","Superintendent","Matthew Keegan","322 Main Street","","Norwell","MA","02061","Nancy Labrie","781-338-3536","nancy.h.labrie@mass.gov",null,378,null,20,"Yes","26",2191,null,0,39468,32465]
[264,"02200000","Norwood","Public School District","Superintendent","David Thomson","275 Prospect Street","PO BOX 67","Norwood","MA","02062","Colleen Holforty","781-338-3522","colleen.e.holforty@mass.gov",null,85,null,0,"No","517",3429,null,9415.9791999999998,420157,345607]
[265,"02210000","Oak Bluffs","Public School District","Superintendent","Matthew D'Andrea","4 Pine Street","","Vineyard Haven","MA","02568","Sue Mazzarella","781-338-3587","susan.mazzarella@mass.gov",null,1,null,0,"No",{"$error":"#N/A"},417,"SchedA",0,125697,103394]
[266,"08550000","Old Colony Regional Vocational Technical","Public School District","Superintendent","Aaron Polansky","476 North Avenue","","Rochester","MA","02770","Colleen Holforty","781-338-3522","colleen.e.holforty@mass.gov",null,0,null,4,"Yes","0",547,null,0,44709,36776]
[267,"07400000","Old Rochester","Public School District","Superintendent","Douglas White","135 Marion Rd","","Mattapoisett","MA","02739","Colleen Holforty","781-338-3522","colleen.e.holforty@mass.gov",null,13,null,0,"Yes","80",1161,null,0,39993,32897]
[268,"35150000","Old Sturbridge Academy Charter Public School (District)","Charter District","Charter School Leader","Lisa DeTora","2 Old Sturbridge Village Road","","Sturbridge","MA","01566","Colleen Holforty","781-338-3522","colleen.e.holforty@mass.gov",null,9,null,65,"No","88",240,null,0,44832,36878]
[269,"02230000","Orange","Public School District","Superintendent","Tari Thomas","507 S. Main Street","P.O. Box 680","Orange","MA","01364","Julia Foodman","781-338-3577","julia.b.foodman@mass.gov",null,15,null,1,"No","465",520,null,0,179552,147693]
[270,"02240000","Orleans","Public School District","Superintendent","Thomas Conrad","78 Eldredge Pkwy","","Orleans","MA","02653","Julia Foodman","781-338-3577","julia.b.foodman@mass.gov",null,8,null,15,"Yes",{"$error":"#N/A"},198,"SchedA",0,22215,20000]
[271,"02260000","Oxford","Public School District","Superintendent","Kristine Nash","4 Maple Road","","Oxford","MA","01540","Alex Lilley","781-338-6212","alex.j.lilley@mass.gov",null,34,null,30,"Yes","526",1537,null,0,467281,377507]
[272,"02270000","Palmer","Public School District","Superintendent","Patricia Gardner","4107 Main Street","","Palmer","MA","01069","Ellie Rounds-Bloom","781-338-3128","eleanor.rounds@mass.gov",null,0,null,0,"Yes","826",1249,null,0,412094,338974]
[273,"08600000","Pathfinder Regional Vocational Technical","Public School District","Superintendent","Gerald Paist","240 Sykes Street","","Palmer","MA","01069","Alex Chiu","781-338-3586","alexandria.w.chiu@mass.gov",null,29,null,0,"Yes","362",615,null,0,141331,116254]
[274,"35010000","Paulo Freire Social Justice Charter School (District)","Charter District","Charter School Leader","Isabelina Rodriguez","134 Springfield St","","Chicopee","MA","01013","Julia Foodman","781-338-3577","julia.b.foodman@mass.gov",null,533,null,112,"Yes","288",275,null,0,262391,215834]
[275,"02290000","Peabody","Public School District","Superintendent","Marc Kerble","27 Lowell Street","","Peabody","MA","01960","Sue Mazzarella","781-338-3587","susan.mazzarella@mass.gov",null,28,null,6,"Yes","1215",5832,null,33413.9228,995963,819245]
[276,"02300000","Pelham","Public School District","Superintendent","Michael Morris","170 Chestnut Street","Business Office","Amherst","MA","01002","Ellie Rounds-Bloom","781-338-3128","eleanor.rounds@mass.gov",null,null,null,null,null,null,123,null,0,0,20000]
[277,"02310000","Pembroke","Public School District","Superintendent","Erin Obey","72 Pilgrim Road","Office of the Superintendent","Pembroke","MA","02359","Alex Chiu","781-338-3586","alexandria.w.chiu@mass.gov",null,7,null,4,"Yes",{"$error":"#N/A"},2657,null,0,117119,96338]
[278,"07450000","Pentucket","Public School District","Superintendent","Justin Bartholomew","22 Main Street","","West Newbury","MA","01985","Colleen Holforty","781-338-3522","colleen.e.holforty@mass.gov",null,38,null,0,"No","104",2321,null,0,250703,206219]
[279,"02340000","Petersham","Public School District","Superintendent","Tari Thomas","P O Box 148","","Petersham","MA","01366","Julia Foodman","781-338-3577","julia.b.foodman@mass.gov",null,null,null,null,null,null,133,null,0,0,20000]
[280,"35180000","Phoenix Academy Public Charter High School Lawrence (District)","Charter District","Charter School Leader","Beth Anderson","15 Union Street","","Lawrence","MA","01840","Ellie Rounds-Bloom","781-338-3128","eleanor.rounds@mass.gov",null,41,null,0,"No","136",171,null,0,60036,49383]
[281,"35080000","Phoenix Academy Public Charter High School Springfield (District)","Charter District","Charter School Leader","Beth Anderson","65 Lincoln Street","","Springfield","MA","01105","Ellie Rounds-Bloom","781-338-3128","eleanor.rounds@mass.gov",null,123,null,64,"No","193",193,null,0,206759,170073]
[282,"04930000","Phoenix Charter Academy (District)","Charter District","Charter School Leader","Beth Anderson","175 Hawthorne Street","","Chelsea","MA","02150","Ellie Rounds-Bloom","781-338-3128","eleanor.rounds@mass.gov",null,213,null,0,"No","149",204,null,0,76715,63103]
[283,"04940000","Pioneer Charter School of Science (District)","Charter District","Charter School Leader","Barish Icin","51-59 Summer Street","","Everett","MA","02149","Colleen Holforty","781-338-3522","colleen.e.holforty@mass.gov",null,87,null,0,"Yes","459",783,null,0,224005,184259]
[284,"35060000","Pioneer Charter School of Science II (PCSS-II) (District)","Charter District","Charter School Leader","Barish Icin","97 Main Street","","Saugus","MA","01906","Colleen Holforty","781-338-3522","colleen.e.holforty@mass.gov",null,1,null,0,"Yes","459",359,null,0,67797,55768]
[285,"07500000","Pioneer Valley","Public School District","Superintendent","Jonathan Scagel","97 F Sumner Turner Road","","Northfield","MA","01360","Nancy Labrie","781-338-3536","nancy.h.labrie@mass.gov",null,15,null,0,"No",{"$error":"#N/A"},661,null,0,78236,64354]
[286,"04970000","Pioneer Valley Chinese Immersion Charter (District)","Charter District","Charter School Leader","Kathleen Wang","317 Russell Street","","Hadley","MA","01035","Beth O'Connell","781-338-3132","elizabeth.a.o'connell@mass.gov",null,2,null,0,"No","136",534,null,0,64849,53342]
[287,"04790000","Pioneer Valley Performing Arts Charter Public (District)","Charter District","Charter School Leader","Marc Kenen","15 Mulligan Drive","","South Hadley","MA","01075","Beth O'Connell","781-338-3132","elizabeth.a.o'connell@mass.gov",null,237,null,0,"Yes","160",394,null,0,76243,62715]
[288,"02360000","Pittsfield","Public School District","Superintendent","Jason Mccandless","269 First Street","","Pittsfield","MA","01201","Beth O'Connell","781-338-3132","elizabeth.a.o'connell@mass.gov",null,29,null,1,"No","1403",5180,null,19346.160100000001,1831118,1506215]
[289,"02380000","Plainville","Public School District","Superintendent","David Raiche","68 Messenger Street","","Plainville","MA","02762","Sue Mazzarella","781-338-3587","susan.mazzarella@mass.gov",null,137,null,86,"Yes","182",662,null,0,57688,47452]
[290,"02390000","Plymouth","Public School District","Superintendent","Gary Maestas","11 Lincoln Street","","Plymouth","MA","02360","Sue Mazzarella","781-338-3587","susan.mazzarella@mass.gov",null,0,null,0,"Yes","457",7240,null,0,899735,732123]
[291,"02400000","Plympton","Public School District","Superintendent","Jill Proulx","250 Pembroke Street","","Kingston","MA","02364","Nancy Labrie","781-338-3536","nancy.h.labrie@mass.gov",null,127,null,17,"No",{"$error":"#N/A"},219,"SchedA",0,20835,20000]
[292,"04870000","Prospect Hill Academy Charter (District)","Charter District","Charter School Leader","Angela Allen","50 Essex Street","","Cambridge","MA","02139","Alex Lilley","781-338-6212","alex.j.lilley@mass.gov",null,22,null,22,"No","646",1100,null,0,323358,265983]
[293,"02420000","Provincetown","Public School District","Superintendent","Suzanne Scallion","Provincetown Schools","","Provincetown","MA","02657","Colleen Holforty","781-338-3522","colleen.e.holforty@mass.gov",null,6,null,0,"Yes","66",111,null,0,51289,42188]
[294,"07530000","Quabbin","Public School District","Superintendent","Sheila Muir","872 South Street","","Barre","MA","01005","Russ Fleming","781-338-6259","russellw.fleming@mass.gov",null,12,null,5,"Yes","317",2103,null,0,243043,171150]
[295,"07780000","Quaboag Regional","Public School District","Superintendent","Brett Kustigian","284 Old West Brookfield Road","PO Box 1538","Warren","MA","01083","Sue Mazzarella","781-338-3587","susan.mazzarella@mass.gov",null,1546,null,0,"Yes","269",1186,null,0,271553,223370]
[296,"02430000","Quincy","Public School District","Superintendent","Richard Decristofaro","34 Coddington Street","","Quincy","MA","02169","Nancy Labrie","781-338-3536","nancy.h.labrie@mass.gov",null,6,null,3,"Yes","786",9417,null,24847.738100000002,2468210,2030265]
[297,"07550000","Ralph C Mahar","Public School District","Superintendent","Tari Thomas","507 South Main Street","","Orange","MA","01364","Julia Foodman","781-338-3577","julia.b.foodman@mass.gov",null,442,null,0,"Yes","378",651,null,0,130170,107074]
[298,"02440000","Randolph","Public School District","Superintendent","Thea Stovell","40 Highland Avenue","","Randolph","MA","02368","Russ Fleming","781-338-6259","russellw.fleming@mass.gov",null,42,null,0,"Yes","770",2745,null,36279.327600000004,1071935,881737]
[299,"02460000","Reading","Public School District","Superintendent","John Doherty","82 Oakland Road","","Reading","MA","01867","Julia Foodman","781-338-3577","julia.b.foodman@mass.gov",null,1677,null,174,"Yes","111",4087,null,0,119517,98311]
[300,"02480000","Revere","Public School District","Superintendent","Dianne Kelly","101 School Street","","Revere","MA","02151","Beth O'Connell","781-338-3132","elizabeth.a.o'connell@mass.gov",null,3,null,0,"No","5592",7429,null,21625.180200000003,2773415,2281316]
[301,"02490000","Richmond","Public School District","Superintendent","Peter Dillon","1831 State Road","","Richmond","MA","01254","Julia Foodman","781-338-3577","julia.b.foodman@mass.gov",null,null,null,null,null,null,155,null,0,0,20000]
[302,"04830000","Rising Tide Charter Public (District)","Charter District","Charter School Leader","Michael O'Keefe","59 Armstrong Road","","Plymouth","MA","02360","Colleen Holforty","781-338-3522","colleen.e.holforty@mass.gov",null,1,null,0,"No","109",642,null,0,19994,20000]
[303,"04820000","River Valley Charter (District)","Charter District","Charter School Leader","Jonnie Lyn Evans","2 Perry Way","","Newburyport","MA","01950","Ellie Rounds-Bloom","781-338-3128","eleanor.rounds@mass.gov",null,2,null,0,"Yes","38",288,null,0,27109,22299]
[304,"02500000","Rochester","Public School District","Superintendent","Douglas White","135 Marion Rd","","Mattapoisett","MA","02739","Colleen Holforty","781-338-3522","colleen.e.holforty@mass.gov",null,152,null,30,"Yes","112",485,null,0,18557,20000]
[305,"02510000","Rockland","Public School District","Superintendent","Alan Cron","34 MacKinlay Way","","Rockland","MA","02370","Ellie Rounds-Bloom","781-338-3128","eleanor.rounds@mass.gov",null,13,null,2,"Yes","548",2232,null,3132.1610000000001,346838,285297]
[306,"02520000","Rockport","Public School District","Superintendent","Robert Liebow","24 Jerdens Lane","","Rockport","MA","01966","Colleen Holforty","781-338-3522","colleen.e.holforty@mass.gov",null,0,null,0,"No","139",840,null,0,106067,87247]
[307,"02530000","Rowe","Public School District","Superintendent","John Franzoni","86 Pond Road","","Rowe","MA","01367","Sue Mazzarella","781-338-3587","susan.mazzarella@mass.gov",null,305,null,0,"No",{"$error":"#N/A"},63,"SchedA",0,1300,20000]
[308,"04840000","Roxbury Preparatory Charter (District)","Charter District","Charter School Leader","John Verrilli","120 Fisher Avenue","","Roxbury","MA","02120","Nancy Labrie","781-338-3536","nancy.h.labrie@mass.gov",null,96,null,0,"No","1328",1525,null,0,1203084,989616]
[309,"04410000","Sabis International Charter (District)","Charter District","Charter School Leader","Maretta Thomsen","160 Joan Street","","Springfield","MA","01129","Alex Lilley","781-338-6212","alex.j.lilley@mass.gov",null,483,null,230,"Yes","946",1572,null,0,724901,596279]
[310,"02580000","Salem","Public School District","Superintendent","Kathleen Smith","29 Highland Avenue","","Salem","MA","01970","Colleen Holforty","781-338-3522","colleen.e.holforty@mass.gov",null,21,null,0,"Yes","1265",3578,null,17447.697,1180064,1096282]
[311,"04850000","Salem Academy Charter (District)","Charter District","Charter School Leader","Kathy Egmont","45 Congress Street","c/o Shetland Pk","Salem","MA","01970","Colleen Holforty","781-338-3522","colleen.e.holforty@mass.gov",null,30,null,13,"Yes","229",491,null,0,98983,81420]
[312,"02610000","Sandwich","Public School District","Superintendent","Pamela Gould","33 Water Street","","Sandwich","MA","02563","Julia Foodman","781-338-3577","julia.b.foodman@mass.gov",null,168,null,24,"Yes","373",2449,null,0,362167,297906]
[313,"02620000","Saugus","Public School District","Superintendent","David DeRuosi","23 Main Street","","Saugus","MA","01906","Beth O'Connell","781-338-3132","elizabeth.a.o'connell@mass.gov",null,0,null,0,"No","1183",2525,null,5315.8362999999999,459823,378235]
[314,"02630000","Savoy","Public School District","Superintendent","John Franzoni","26 Chapel Road","","Savoy","MA","01256","Sue Mazzarella","781-338-3587","susan.mazzarella@mass.gov",null,13,null,10,"Yes",{"$error":"#N/A"},47,"SchedA",0,20673,20000]
[315,"02640000","Scituate","Public School District","Superintendent","Ronald Griffin","606 C J Cushing Hwy","","Scituate","MA","02066","Alex Lilley","781-338-6212","alex.j.lilley@mass.gov",null,66,null,0,"Yes","126",2933,null,0,89301,73456]
[316,"02650000","Seekonk","Public School District","Superintendent","Richard Drolet","25 Water Lane","","Seekonk","MA","02771","Ellie Rounds-Bloom","781-338-3128","eleanor.rounds@mass.gov",null,180,null,9,"No","336",2060,null,2489.0940999999998,211828,174242]
[317,"02660000","Sharon","Public School District","Superintendent","Victoria Greer","75 Mountain Street","","Sharon","MA","02067","Colleen Holforty","781-338-3522","colleen.e.holforty@mass.gov",null,145,null,9,"Yes","125",3628,null,0,80973,66606]
[318,"08710000","Shawsheen Valley Regional Vocational Technical","Public School District","Superintendent","Melanie Hagman","100 Cook Street","","Billerica","MA","01821","Alex Chiu","781-338-3586","alexandria.w.chiu@mass.gov",null,1,null,6,"Yes","298",1256,null,0,106812,87860]
[319,"02690000","Sherborn","Public School District","Superintendent","Andrew Keough","157 Farm Street","","Dover","MA","02030","Beth O'Connell","781-338-3132","elizabeth.a.o'connell@mass.gov",null,11,null,0,"No","34",383,null,0,30234,24869]
[320,"02710000","Shrewsbury","Public School District","Superintendent","Joseph Sawyer","100 Maple Avenue","","Shrewsbury","MA","01545","Russ Fleming","781-338-6259","russellw.fleming@mass.gov",null,169,null,18,"Yes","133",6127,null,4333.3235000000004,197018,162060]
[321,"02720000","Shutesbury","Public School District","Superintendent","Jennifer Culkeen","18 Pleasant Street","","Erving","MA","01344","Nancy Labrie","781-338-3536","nancy.h.labrie@mass.gov",null,1,null,0,"No","66",109,null,0,15990,20000]
[322,"07600000","Silver Lake","Public School District","Superintendent","Jill Proulx","250 Pembroke Street","","Kingston","MA","02364","Nancy Labrie","781-338-3536","nancy.h.labrie@mass.gov",null,10,null,17,"Yes","871",1609,null,0,71595,58891]
[323,"04740000","Sizer School: A North Central Charter Essential (District)","Charter District","Charter School Leader","Frederick Randall","500 Rindge Road","","Fitchburg","MA","01420","Nancy Labrie","781-338-3536","nancy.h.labrie@mass.gov",null,4,null,15,"No","194",356,null,0,96987,79778]
[324,"02730000","Somerset","Public School District","Superintendent","Jeffrey Schoonover","580 Whetstone Hill Road","","Somerset","MA","02726","Russ Fleming","781-338-6259","russellw.fleming@mass.gov",null,17,null,0,"Yes","94",1714,null,0,219553,180597]
[325,"07630000","Somerset Berkley Regional School District","Public School District","Superintendent","Jeffrey Schoonover","580 Whetstone Hill","","Somerset","MA","02726","Russ Fleming","781-338-6259","russellw.fleming@mass.gov",null,2,null,0,"Yes","132",1029,null,0,36661,30156]
[326,"02740000","Somerville","Public School District","Superintendent","Mary Skipper","8 Bonair Street","","Somerville","MA","02145","Colleen Holforty","781-338-3522","colleen.e.holforty@mass.gov",null,930,null,0,"Yes","2203",4647,null,15151.5267,1208335,993935]
[327,"02780000","South Hadley","Public School District","Superintendent","Diana Bonneville","116 Main Street","","South Hadley","MA","01075","Nancy Labrie","781-338-3536","nancy.h.labrie@mass.gov",null,78,null,28,"Yes","302",1843,null,0,210422,173086]
[328,"08290000","South Middlesex Regional Vocational Technical","Public School District","Superintendent","Jonathan Evans","750 Winter Street","","Framingham","MA","01702","Russ Fleming","781-338-6259","russellw.fleming@mass.gov",null,102,null,11,"No","522",781,null,0,223976,184235]
[329,"04880000","South Shore Charter Public (District)","Charter District","Charter School Leader","Alicia Savage","100 Longwater Circle","","Norwell","MA","02061","Sue Mazzarella","781-338-3587","susan.mazzarella@mass.gov",null,141,null,0,"No","285",1001,null,0,108203,89004]
[330,"08730000","South Shore Regional Vocational Technical","Public School District","Superintendent","Thomas Hickey","476 Webster Street","","Hanover","MA","02339","Beth O'Connell","781-338-3132","elizabeth.a.o'connell@mass.gov",null,3,null,0,"Yes","0",632,null,0,72919,59981]
[331,"02750000","Southampton","Public School District","Superintendent","Aaron Osborne","19 Stage Rd","","Westhampton","MA","01027","Nancy Labrie","781-338-3536","nancy.h.labrie@mass.gov",null,10,null,0,"Yes",{"$error":"#N/A"},448,"SchedA",0,36854,30315]
[332,"02760000","Southborough","Public School District","Superintendent","Gregory Martineau","53 Parkerville Road","","Southborough","MA","01772","Beth O'Connell","781-338-3132","elizabeth.a.o'connell@mass.gov",null,76,null,0,"Yes",{"$error":"#N/A"},1214,"SchedA",0,42533,34986]
[333,"02770000","Southbridge","Public School District","Superintendent","Jeffrey Villar","25 Cole Avenue","","Southbridge","MA","01550","Ellie Rounds-Bloom","781-338-3128","eleanor.rounds@mass.gov",null,444,null,55,"Yes","1930",1857,null,5747.5254999999997,1015374,835212]
[334,"08720000","Southeastern Regional Vocational Technical","Public School District","Superintendent","Luis Lopes","250 Foundry Street","","South Easton","MA","02375","Julia Foodman","781-338-3577","julia.b.foodman@mass.gov",null,15,null,8,"No","750",1442,null,0,282818,232636]
[335,"07650000","Southern Berkshire","Public School District","Superintendent","Beth Regulbuto","PO BOX 339","","Sheffield","MA","01257","Alex Lilley","781-338-6212","alex.j.lilley@mass.gov",null,11,null,6,"Yes","160",629,null,2235.3085999999998,181249,149090]
[336,"08760000","Southern Worcester County Regional Vocational Technical","Public School District","Superintendent","John LaFleche","57 Old Muggett Hill Road","","Charlton","MA","01507","Alex Chiu","781-338-3586","alexandria.w.chiu@mass.gov",null,6,null,0,"Yes","403",1119,null,0,160827,132291]
[337,"07660000","Southwick-Tolland-Granville Regional School District","Public School District","Superintendent","Jennifer Willard","86 Powder Mill Road","","Southwick","MA","01077","Ellie Rounds-Bloom","781-338-3128","eleanor.rounds@mass.gov",null,49,null,0,"Yes","138",1448,null,0,268249,220653]
[338,"07670000","Spencer-E Brookfield","Public School District","Superintendent","Paul Haughey","306 Main Street","","Spencer","MA","01562","Colleen Holforty","781-338-3522","colleen.e.holforty@mass.gov",null,61,null,15,"Yes","643",1354,null,0,247930,203939]
[339,"02810000","Springfield","Public School District","Superintendent","Daniel Warwick","1550 Main Street","","Springfield","MA","01103","Alex Lilley","781-338-6212","alex.j.lilley@mass.gov",null,4101,null,1398,"Yes","19849",23408,null,343895.17710000003,21734299,17860165]
[340,"35100000","Springfield Preparatory Charter School (District)","Charter District","Charter School Leader","Bill Spirer","594 Converse St.","","Longmeadow","MA","01106","Beth O'Connell","781-338-3132","elizabeth.a.o'connell@mass.gov",null,55,null,0,"Yes","270",325,null,0,254553,209387]
[341,"02840000","Stoneham","Public School District","Superintendent","John Macero","149 Franklin Street","","Stoneham","MA","02180","Julia Foodman","781-338-3577","julia.b.foodman@mass.gov",null,85,null,8,"Yes","401",2302,null,0,272792,224389]
[342,"02850000","Stoughton","Public School District","Superintendent","John Marcus","232 Pearl Street","","Stoughton","MA","02072","Beth O'Connell","781-338-3132","elizabeth.a.o'connell@mass.gov",null,257,null,50,"Yes","256",3424,null,0,541649,445542]
[343,"02870000","Sturbridge","Public School District","Superintendent","Erin Nosek","320 Brookfield Rd","","Fiskdale","MA","01518","Russ Fleming","781-338-6259","russellw.fleming@mass.gov",null,12,null,3,"Yes",{"$error":"#N/A"},820,"SchedA",0,96035,78995]
[344,"04890000","Sturgis Charter Public (District)","Charter District","Charter School Leader","Paul Marble","427 Main Street","","Hyannis","MA","02601","Alex Lilley","781-338-6212","alex.j.lilley@mass.gov",null,null,null,null,null,null,846,null,0,0,20000]
[345,"02880000","Sudbury","Public School District","Superintendent","Brad Crozier","40 Fairbank Road","","Sudbury","MA","01776","Alex Lilley","781-338-6212","alex.j.lilley@mass.gov",null,58,null,0,"Yes","144",2653,null,0,71836,59090]
[346,"02890000","Sunderland","Public School District","Superintendent","Darius Modestow","113 North Main Street, Office C101","","South Deerfield","MA","01373","Alex Lilley","781-338-6212","alex.j.lilley@mass.gov",null,16,null,0,"Yes",{"$error":"#N/A"},202,"SchedA",0,19093,20000]
[347,"02900000","Sutton","Public School District","Superintendent","Theodore Friend","383 Boston Rd","","Sutton","MA","01590","Russ Fleming","781-338-6259","russellw.fleming@mass.gov",null,14,null,2,"Yes","40",1339,null,0,44756,36815]
[348,"02910000","Swampscott","Public School District","Superintendent","Pamela Angelakis","207 Forest Avenue","","Swampscott","MA","01907","Nancy Labrie","781-338-3536","nancy.h.labrie@mass.gov",null,119,null,8,"Yes","322",2175,null,0,181169,149023]
[349,"02920000","Swansea","Public School District","Superintendent","John Robidoux","1 Gardners Neck Road","","Swansea","MA","02777","Russ Fleming","781-338-6259","russellw.fleming@mass.gov",null,7,null,16,"Yes","181",2046,null,0,374295,277947]
[350,"07700000","Tantasqua","Public School District","Superintendent","Erin Nosek","320A Brookfield Rd","","Fiskdale","MA","01518","Russ Fleming","781-338-6259","russellw.fleming@mass.gov",null,7,null,13,"Yes","790",1781,null,0,133389,109721]
[351,"02930000","Taunton","Public School District","Superintendent","John Cabral","215 Harris Street","","Taunton","MA","02780","Julia Foodman","781-338-3577","julia.b.foodman@mass.gov",null,413,null,138,"Yes","2321",7851,null,13653.6371,2453442,2018117]
[352,"39020000","TEC Connections Academy Commonwealth Virtual School District","Public School District","Superintendent","Patrick Lattuca","141 Mansion Drive","","East Walpole","MA","02032","Russ Fleming","781-338-6259","russellw.fleming@mass.gov",null,40,null,0,"Yes","1648",2294,null,0,766680,630645]
[353,"02950000","Tewksbury","Public School District","Superintendent","Christopher Malone","139 Pleasant Street","","Tewksbury","MA","01876","Beth O'Connell","781-338-3132","elizabeth.a.o'connell@mass.gov",null,57,null,16,"Yes","312",3208,null,13639.32,341489,280897]
[354,"02960000","Tisbury","Public School District","Superintendent","Matthew D'Andrea","4 Pine Street","","Vineyard Haven","MA","02568","Sue Mazzarella","781-338-3587","susan.mazzarella@mass.gov",null,63,null,0,"No",{"$error":"#N/A"},290,"SchedA",0,53554,44052]
[355,"02980000","Topsfield","Public School District","Superintendent","Scott Morrison","28 Middleton Road","","Boxford","MA","01921","Russ Fleming","781-338-6259","russellw.fleming@mass.gov",null,2,null,0,"Yes","35",605,null,0,80144,65924]
[356,"08780000","Tri-County Regional Vocational Technical","Public School District","Superintendent","Stephen Dockray","147 Pond Street","","Franklin","MA","02038","Alex Lilley","781-338-6212","alex.j.lilley@mass.gov",null,1,null,11,"No","298",958,null,0,98662,81156]
[357,"07730000","Triton","Public School District","Superintendent","Brian Forget","112 Elm Street","","Byfield","MA","01922","Russ Fleming","781-338-6259","russellw.fleming@mass.gov",null,26,null,225,"Yes","286",2264,null,0,261849,215388]
[358,"03000000","Truro","Public School District","Superintendent","Michael Gradone","P O Box 2029","","Truro","MA","02666","Ellie Rounds-Bloom","781-338-3128","eleanor.rounds@mass.gov",null,0,null,0,"No","43",95,null,0,24792,20393]
[359,"03010000","Tyngsborough","Public School District","Superintendent","Michael Flanagan","50 Norris Rd","","Tyngsborough","MA","01879","Colleen Holforty","781-338-3522","colleen.e.holforty@mass.gov",null,41,null,5,"Yes","184",1606,null,0,70080,57646]
[360,"04800000","UP Academy Charter School of Boston (District)","Charter District","Charter School Leader","Rashidah Lawson","215 Dorchester Street","","Boston","MA","02127","Ellie Rounds-Bloom","781-338-3128","eleanor.rounds@mass.gov",null,150,null,0,"Yes","501",404,null,0,491385,404196]
[361,"35050000","UP Academy Charter School of Dorchester (District)","Charter District","Charter School Leader","Erica Andrew","35 Westville Street","","Boston","MA","02124","Ellie Rounds-Bloom","781-338-3128","eleanor.rounds@mass.gov",null,206,null,0,"No","646",636,null,0,632058,519910]
[362,"07740000","Up-Island Regional","Public School District","Superintendent","Matthew D'Andrea","4 Pine Street","","Vineyard Haven","MA","02568","Sue Mazzarella","781-338-3587","susan.mazzarella@mass.gov",null,23,null,0,"Yes",{"$error":"#N/A"},395,"SchedA",0,59016,48544]
[363,"08790000","Upper Cape Cod Regional Vocational Technical","Public School District","Superintendent","Robert Dutch","220 Sandwich Rd","","Bourne","MA","02532","Ellie Rounds-Bloom","781-338-3128","eleanor.rounds@mass.gov",null,0,null,5,"No",{"$error":"#N/A"},693,"SchedA",0,96660,79509]
[364,"03040000","Uxbridge","Public School District","Superintendent","Frank Tiano","9 North Main Street","","Uxbridge","MA","01569","Nancy Labrie","781-338-3536","nancy.h.labrie@mass.gov",null,28,null,0,"Yes","322",1650,null,0,304934,250828]
[365,"04980000","Veritas Preparatory Charter School (District)","Charter District","Charter School Leader","Rachel Romano","370 Pine Street","","Springfield","MA","01105","Sue Mazzarella","781-338-3587","susan.mazzarella@mass.gov",null,27,null,0,"Yes","348",371,null,0,294706,242415]
[366,"07750000","Wachusett","Public School District","Superintendent","Darryll McCall","1745 Main Street","c/o Jefferson School","Jefferson","MA","01522","Beth O'Connell","781-338-3132","elizabeth.a.o'connell@mass.gov",null,122,null,7,"Yes","226",6929,null,0,268055,176898]
[367,"03050000","Wakefield","Public School District","Superintendent","Douglas Lyons","60 Farm Street","","Wakefield","MA","01880","Russ Fleming","781-338-6259","russellw.fleming@mass.gov",null,78,null,0,"Yes","571",3372,null,425.06459999999998,124350,102286]
[368,"03060000","Wales","Public School District","Superintendent","Erin Nosek","320 Brookfield Rd","","Fiskdale","MA","01518","Russ Fleming","781-338-6259","russellw.fleming@mass.gov",null,0,null,1,"Yes",{"$error":"#N/A"},122,"SchedA",0,37649,30969]
[369,"03070000","Walpole","Public School District","Superintendent","Bridget Gough","135 School Street","","Walpole","MA","02081","Beth O'Connell","781-338-3132","elizabeth.a.o'connell@mass.gov",null,118,null,0,"Yes","208",3669,null,0,136233,108732]
[370,"03080000","Waltham","Public School District","Superintendent","George Frost","617 Lexington Street","","Waltham","MA","02452","Sue Mazzarella","781-338-3587","susan.mazzarella@mass.gov",null,1312,null,0,"Yes","1814",5702,null,4748.2028,788699,646427]
[371,"03090000","Ware","Public School District","Superintendent","Marlene Di Leo","P O Box 240","","Ware","MA","01082","Alex Lilley","781-338-6212","alex.j.lilley@mass.gov",null,12,null,0,"Yes","541",1103,null,0,333043,273950]
[372,"03100000","Wareham","Public School District","Superintendent","Kimberly Shaver-Hood","48 Marion Road","","Wareham","MA","02571","Ellie Rounds-Bloom","781-338-3128","eleanor.rounds@mass.gov",null,29,null,43,"Yes","725",2046,null,23824.269400000001,617536,507964]
[373,"03140000","Watertown","Public School District","Superintendent","Deanne Galdston","30 Common Street","","Watertown","MA","02472","Colleen Holforty","781-338-3522","colleen.e.holforty@mass.gov",null,337,null,9,"Yes","736",2568,null,0,413357,340013]
[374,"03150000","Wayland","Public School District","Superintendent","Arthur Unobskey","41 Cochituate Rd","","Wayland","MA","01778","Nancy Labrie","781-338-3536","nancy.h.labrie@mass.gov",null,109,null,0,"Yes","80",2737,null,0,67816,55783]
[375,"03160000","Webster","Public School District","Superintendent","Ruthann Petruno-Goguen","77 Poland Street","","Webster","MA","01570","Russ Fleming","781-338-6259","russellw.fleming@mass.gov",null,168,null,45,"Yes","1521",1780,null,12520.213400000001,723315,594975]
[376,"03170000","Wellesley","Public School District","Superintendent","David Lussier","40 Kingsbury Street","","Wellesley","MA","02481","Julia Foodman","781-338-3577","julia.b.foodman@mass.gov",null,116,null,8,"Yes","204",4821,null,0,150163,123519]
[377,"03180000","Wellfleet","Public School District","Superintendent","Thomas Conrad","78 Eldredge Pkwy","","Orleans","MA","02653","Julia Foodman","781-338-3577","julia.b.foodman@mass.gov",null,1,null,1,"Yes",{"$error":"#N/A"},105,"SchedA",0,5366,20000]
[378,"03220000","West Boylston","Public School District","Superintendent","Elizabeth Schaper","125 Crescent Street","","West Boylston","MA","01583","Alex Lilley","781-338-6212","alex.j.lilley@mass.gov",null,30,null,0,"Yes","149",880,null,0,101292,83320]
[379,"03230000","West Bridgewater","Public School District","Superintendent","Patricia Oakley","2 Spring Street","","West Bridgewater","MA","02379","Ellie Rounds-Bloom","781-338-3128","eleanor.rounds@mass.gov",null,20,null,4,"Yes","168",1313,null,0,81784,67273]
[380,"03320000","West Springfield","Public School District","Superintendent","Timothy Connor","26 Central Street","","West Springfield","MA","01089","Alex Lilley","781-338-6212","alex.j.lilley@mass.gov",null,436,null,176,"Yes","2026",3984,null,3923.5540999999998,1329976,1093993]
[381,"03210000","Westborough","Public School District","Superintendent","Amber Bock","45 West Main Street","","Westborough","MA","01581","Sue Mazzarella","781-338-3587","susan.mazzarella@mass.gov",null,406,null,0,"Yes","138",3849,null,0,97887,80519]
[382,"03250000","Westfield","Public School District","Superintendent","Stefan Czaporowski","94 North Elm Street","Suite 101","Westfield","MA","01085","Alex Lilley","781-338-6212","alex.j.lilley@mass.gov",null,311,null,78,"Yes","3029",5116,null,11738.3951,1466613,1206385]
[383,"03260000","Westford","Public School District","Superintendent","Everett Olsen","23 Depot Street","","Westford","MA","01886","Nancy Labrie","781-338-3536","nancy.h.labrie@mass.gov",null,null,null,null,null,null,4874,null,0,0,20000]
[384,"03270000","Westhampton","Public School District","Superintendent","Aaron Osborne","19 Stage Rd","","Westhampton","MA","01027","Nancy Labrie","781-338-3536","nancy.h.labrie@mass.gov",null,null,null,null,null,null,111,null,0,0,20000]
[385,"03300000","Weston","Public School District","Superintendent","Midge Connolly","89 Wellesley Street","","Weston","MA","02493","Julia Foodman","781-338-3577","julia.b.foodman@mass.gov",null,69,null,0,"Yes","66",2020,null,0,198466,163252]
[386,"03310000","Westport","Public School District","Superintendent","Gary Reese","17 Main Rd","","Westport","MA","02790","Beth O'Connell","781-338-3132","elizabeth.a.o'connell@mass.gov",null,14,null,0,"Yes","344",1371,null,0,220754,181584]
[387,"03350000","Westwood","Public School District","Superintendent","Emily Parks","220 Nahatan Street","","Westwood","MA","02090","Alex Lilley","781-338-6212","alex.j.lilley@mass.gov",null,null,null,null,null,null,2973,null,0,0,20000]
[388,"03360000","Weymouth","Public School District","Superintendent","Jennifer Curtis-Whipple","111 Middle Street","","Weymouth","MA","02189","Ellie Rounds-Bloom","781-338-3128","eleanor.rounds@mass.gov",null,252,null,120,"Yes","1171",5670,null,8828.3747999999996,949793,773722]
[389,"03370000","Whately","Public School District","Superintendent","Darius Modestow","113 North Main Street, Office C101","","South Deerfield","MA","01373","Alex Lilley","781-338-6212","alex.j.lilley@mass.gov",null,null,null,null,null,null,108,null,0,0,20000]
[390,"07800000","Whitman-Hanson","Public School District","Superintendent","Jeffrey Szymaniak","610 Franklin Street","","Whitman","MA","02382","Alex Lilley","781-338-6212","alex.j.lilley@mass.gov",null,38,null,14,"Yes","355",3714,null,0,355318,292273]
[391,"08850000","Whittier Regional Vocational Technical","Public School District","Superintendent","Maureen Lynch","115 Amesbury Line Rd","","Haverhill","MA","01830","Colleen Holforty","781-338-3522","colleen.e.holforty@mass.gov",null,14,null,18,"Yes","565",1246,null,0,251998,207285]
[392,"03400000","Williamsburg","Public School District","Superintendent","Aaron Osborne","19 Stage Rd","","Westhampton","MA","01027","Nancy Labrie","781-338-3536","nancy.h.labrie@mass.gov",null,5,null,0,"Yes",{"$error":"#N/A"},135,"SchedA",0,21773,20000]
[393,"03420000","Wilmington","Public School District","Superintendent","Glenn Brand","161 Church Street","","Wilmington","MA","01887","Alex Chiu","781-338-3586","alexandria.w.chiu@mass.gov",null,36,null,23,"Yes","128",3134,null,0,122373,100660]
[394,"03430000","Winchendon","Public School District","Superintendent","Joan Landers","175 Grove Street","","Winchendon","MA","01475","Beth O'Connell","781-338-3132","elizabeth.a.o'connell@mass.gov",null,8,null,28,"Yes","764",1171,null,1484.4798000000001,380089,292387]
[395,"03440000","Winchester","Public School District","Superintendent","Judith Evans","40 Samoset Road","","Winchester","MA","01890","Sue Mazzarella","781-338-3587","susan.mazzarella@mass.gov",null,125,null,16,"Yes","53",4665,null,0,115908,95342]
[396,"03460000","Winthrop","Public School District","Superintendent","Lisa Howard","1 Metcalf Square","","Winthrop","MA","02152","Alex Lilley","781-338-6212","alex.j.lilley@mass.gov",null,162,null,15,"Yes","789",1927,null,0,381209,313569]
[397,"03470000","Woburn","Public School District","Superintendent","Matthew Crowley","55 Locust Street","","Woburn","MA","01801","Ellie Rounds-Bloom","781-338-3128","eleanor.rounds@mass.gov",null,321,null,0,"Yes","710",4364,null,11634.928099999999,647875,532919]
[398,"03480000","Worcester","Public School District","Superintendent","Maureen Binienda","20 Irving Street","","Worcester","MA","01609","Russ Fleming","781-338-6259","russellw.fleming@mass.gov",null,7774,null,3178,"Yes","20899",24383,null,178252.95949999997,11585589,9463606]
[399,"03490000","Worthington","Public School District","Superintendent","Gretchen Morse-Dobosz","147 Huntington Road","","Worthington","MA","01098","Nancy Labrie","781-338-3536","nancy.h.labrie@mass.gov",null,0,null,0,"No",{"$error":"#N/A"},72,"SchedA",0,2526,20000]
[400,"03500000","Wrentham","Public School District","Superintendent","Allan Cameron","120 Taunton Street","","Wrentham","MA","02093","Russ Fleming","781-338-6259","russellw.fleming@mass.gov",null,23,null,0,"Yes","78",872,null,0,32945,27099]
[]
[null,null,null,null,null,null,null,null,null,0]

{"sheet":"Dropdowns","index":2,"n_rows":4,"n_cols":1,"rows_kept":4,"cut":false,"hidden":true,"merged":[]}
["YesNo"]
["Select One"]
["Yes"]
["No"]

{"sheet":"DataLookupValues","index":3,"n_rows":27,"n_cols":6,"rows_kept":27,"cut":false,"hidden":true,"merged":[]}
["Workbook Information"]
[]
[]
[]
["District Information"]
["District value",1,null,null,"Liasons"]
["District Name:",{"$f":"VLOOKUP(valDistr,DataDistr,3,FALSE)","v":"OrgName"},"district code",{"$f":"LEFT(VLOOKUP(valDistr,DataDistr,2,FALSE),4)","v":"DIST"},"Name",{"$f":"VLOOKUP(valDistr,DataDistr,12,FALSE)","v":"Liaison's Name"}]
["Address1",{"$f":"VLOOKUP(valDistr,DataDistr,7,FALSE)","v":"ADDR 1"},null,null,"Phone",{"$f":"VLOOKUP(valDistr,DataDistr,13,FALSE)","v":"Liaison's Number"}]
["Address2",{"$f":"IF(VLOOKUP(valDistr,DataDistr,8,FALSE)=0,\"\",VLOOKUP(valDistr,DataDistr,8,FALSE))","v":"ADDR 2"},null,null,"Email",{"$f":"VLOOKUP(valDistr,DataDistr,14,FALSE)","v":"Liaison's Email"}]
["City, State, ZIP",{"$f":"VLOOKUP(valDistr,DataDistr,9,FALSE)&\", \"&VLOOKUP(valDistr,DataDistr,10,FALSE)&\" \"&VLOOKUP(valDistr,DataDistr,11,FALSE)","v":"City, State Zip"}]
["District Enrollment",{"$f":"VLOOKUP(valDistr,DataDistr,17,FALSE)","v":0},"EL Enrollment",{"$f":"VLOOKUP(valDistr,DataDistr,16,FALSE)","v":"March 2019 nElCOUNT_sum"}]
["Low Inc Methods TI"]
["SELECT ONE",null,"TitleI Status"]
["Oct Eco Dis",null,1]
["Oct Eco Dis x 1.6",null,2,"SW"]
["March Eco Dis",null,3,"TA"]
["March Eco Dis x 1.6",null,4,"NT"]
["Other ",null,5,"CL"]
[]
["Homeless Enrollment",{"$f":"VLOOKUP(valDistr,DataDistr,18,FALSE)","v":"HOMELESS, K-12"}]
["SLE Gaps",{"$f":"VLOOKUP(valDistr,DataDistr,19,FALSE)","v":"SLE Gaps?"}]
["FY20 district Enrollment",{"$f":"VLOOKUP(valDistr,DataDistr,21,FALSE)","v":"March2020Enrolled"}]
[]
["Total FY20 Title I Reservation for Private Schools",null,{"$f":"VLOOKUP(valDistr, DataDistr, 23, FALSE)","v":"Total T1FY20 ES Res"}]
["Total FY20 Title I Allocation to District (Adjusted)",null,{"$f":"VLOOKUP(valDistr, DataDistr, 24, FALSE)","v":"Total T1 Adjusted Alloc"}]
["Total FY20 Title I Low Income District Students Served",null,{"$f":"VLOOKUP(valDistr, DataDistr, 20, FALSE)","v":"FY20 T1 Distr LowInc"}]
["Total ESSER Allocation",null,{"$f":"VLOOKUP(valDistr, DataDistr, 25, FALSE)","v":"ESSER Fund Allocation"}]